Workbook

Sheet Konfigurator
A1: 1 | F1: Kunde: | H1: Vers.: | I1: 2.04_03 | L1: Menge | M1: Art.-Nr. | N1: Artikelbeschreibung | O1: Einzel-Liste | P1: Einzel-EK | Q1: Gravur-Text | R1: Reihenfolge
A2: 2 | F2: Bearbeiter: | K2: =IF($A$25>1,"Fehler",IF(AND(H36>0,H37>0,I35<1),"Fehler","")) ->  | L2: =IF($A$25<>0,IF(VLOOKUP($A1,$A28:$I$165,1)=1,VLOOKUP($A1,$A28:$I$165,9)& " x",""),"") ->  | M2: =IF($A$25<>0,IF($A$1>=$A1,VLOOKUP($A1,$A$28:$H$165,8),""),"") ->  | N2: =IF($A$25<>0,IF($A$1>=$A1,VLOOKUP($A1,$A$28:$H$165,7)&IF(AND($H$36>0,$H$37>0,$M2=5016),", - Breite: "&$H$36&"mm"&", Höhe: "&$H$37&"mm",IF(M2=5016," - Größenangabe fehlt!",""))),"") ->  | O2: =IF($A$25<>0,IF($A$1>=$A1,VLOOKUP($A1,$A$28:$J$165,10),""),"") ->  | P2: =IF(M2="","",ROUND($O2-($O2*$I$10),2)) ->  | Q2: =IF($A$25>1,"Mehr als 1 Anschlussfeld","") -> 
A3: 3 | F3: Projekt: | L3: =IF(AND($A$25=1,$I$40<>""),E40&" x",IF(AND($A$25=1,$I$40=0,$A$24<>0),A24&" x","")) ->  | M3: =IF(OR(AND($I$40<>"",$I$35<>0),AND($I$40<>"",$I$28<>0),AND($I$40<>"",$I$29<>0),AND($I$40<>"",$I$30<>0),AND($I$40<>"",$I$31<>0),AND($I$40<>"",$I$32<>0),AND($I$40<>"",$I$33<>0)),$H$40,IF(AND($A$25=1,$A$24<>0),$H$40,"")) ->  | N3: =IF(OR(AND($I$40<>"",$I$35<>0),AND($I$40<>"",$I$28<>0),AND($I$40<>"",$I$29<>0),AND($I$40<>"",$I$30<>0),AND($I$40<>"",$I$31<>0),AND($I$40<>"",$I$32<>0),AND($I$40<>"",$I$33<>0)),$G$39,IF(AND($A$25=1,$A$24<>0),$G$39,"")) ->  | O3: =IF(OR(AND($I$40<>"",$I$35<>0),AND($I$40<>"",$I$28<>0),AND($I$40<>"",$I$29<>0),AND($I$40<>"",$I$30<>0),AND($I$40<>"",$I$31<>0),AND($I$40<>"",$I$32<>0),AND($I$40<>"",$I$33<>0)),$J$40,IF(AND($A$25=1,$A$24<>0),$J$40,"")) ->  | P3: =IF(M3="","",$O3-($O3*$I$10)) ->  | T3: =SUM(T6:T25) -> 0
A4: 4 | F4: Bestell-Nummer: | L4: =IF(AND($A$25=1,$C$123=1,$I$121>0),$E$123&" x",IF(AND($A$25=1,$C$124=1,$I$121>0),$E$124&" x",IF(AND($A$25=1,$C$125=1,$I$121>0),$E$125&" x",IF(AND($A$25=1,$C$134=1,$I$132>0),$E$134&" x",IF(AND($A$25=1,$C$135=1,$I$132>0),$E$135&" x",IF(AND($A$25=1,$C$136=1,$I$132>0),$E$136&" x",IF(AND($A$25=1,$C$137=1,$I$132>0),$E$137&" x","")))))))&IF(AND($A$25=1,$C$146=1,$I$144>0),$E$146&" x",IF(AND($A$25=1,$C$147=1,$I$144>0),$E$147&" x",IF(AND($A$25=1,$C$148=1,$I$144>0),$E$148&" x",IF(AND($A$25=1,$C$149=1,$I$144>0),$E$149&" x","")))) ->  | M4: =IF(AND($A$25=1,$C$123=1,$I$121>0),$H$123,IF(AND($A$25=1,$C$124=1,$I$121>0),$H$124,IF(AND($A$25=1,$C$125=1,$I$121>0),$H$125,IF(AND($A$25=1,$C$134=1,$I$132>0),$H$134,IF(AND($A$25=1,$C$135=1,$I$132>0),$H$135,IF(AND($A$25=1,$C$136=1,$I$132>0),$H$136,IF(AND($A$25=1,$C$137=1,$I$132>0),$H$137,"")))))))&IF(AND($A$25=1,$C$146=1,$I$144>0),$H$146,IF(AND($A$25=1,$C$147=1,$I$144>0),$H$147,IF(AND($A$25=1,$C$148=1,$I$144>0),$H$148,IF(AND($A$25=1,$C$149=1,$I$144>0),$H$149,"")))) ->  | N4: =IF(AND($A$25=1,$C$123=1,$I$121>0),$G$123,IF(AND($A$25=1,$C$124=1,$I$121>0),$G$124,IF(AND($A$25=1,$C$125=1,$I$121>0),$G$125,IF(AND($A$25=1,$C$134=1,$I$132>0),$G$134,IF(AND($A$25=1,$C$135=1,$I$132>0),$G$135,IF(AND($A$25=1,$C$136=1,$I$132>0),$G$136,IF(AND($A$25=1,$C$137=1,$I$132>0),$G$137,"")))))))&IF(AND($A$25=1,$C$148=1,$I$144>0),$G$148,IF(AND($A$25=1,$C$146=1,$I$144>0),$G$146,IF(AND($A$25=1,$C$147=1,$I$144>0),$G$147,IF(AND($A$25=1,$C$149=1,$I$144>0),$G$149,"")))) ->  | O4: =IF(AND($A$25=1,$C$123=1,$I$121>0),$J$123,IF(AND($A$25=1,$C$124=1,$I$121>0),$J$124,IF(AND($A$25=1,$C$125=1,$I$121>0),$J$125,IF(AND($A$25=1,$C$134=1,$I$132>0),$J$134,IF(AND($A$25=1,$C$135=1,$I$132>0),$J$135,IF(AND($A$25=1,$C$136=1,$I$132>0),$J$136,IF(AND($A$25=1,$C$137=1,$I$132>0),$J$137,"")))))))&IF(AND($A$25=1,$C$148=1,$I$144>0),$J$148,IF(AND($A$25=1,$C$146=1,$I$144>0),$J$146,IF(AND($A$25=1,$C$147=1,$I$144>0),$J$147,IF(AND($A$25=1,$C$149=1,$I$144>0),$J$149,"")))) ->  | P4: =IF(M4="","",$O4-($O4*$I$10)) ->  | T4: =SUM(T7:T26) -> 0
A5: 5 | F5: Datum: | L5: =IF(AND($A$25=1,$C$139=1,$I$132>0),$E$139&" x",IF(AND($A$25=1,$C$140=1,$I$132>0),$E$140&" x",IF(AND($A$25=1,$C$151=1,$I$144>0),$E$151&" x",IF(AND($A$25=1,$C$152=1,$I$144>0),$E$152&" x",IF(AND($A$25=1,$C$100=1,$I$93>0),$E$100&" x",""))))) ->  | M5: =IF(AND($A$25=1,$C$139=1,$I$132>0),$H$139,IF(AND($A$25=1,$C$140=1,$I$132>0),$H$140,IF(AND($A$25=1,$C$151=1,$I$144>0),$H$151,IF(AND($A$25=1,$C$152=1,$I$144>0),$H$152,IF(AND($A$25=1,$C$100=1,$I$93>0),$H$100,""))))) ->  | N5: =IF(AND($A$25=1,$C$139=1,$I$132>0),$G$139,IF(AND($A$25=1,$C$140=1,$I$132>0),$G$140,IF(AND($A$25=1,$C$151=1,$I$144>0),$G$151,IF(AND($A$25=1,$C$152=1,$I$144>0),$G$152,IF(AND($A$25=1,$C$100=1,$I$93>0),$G$100,""))))) ->  | O5: =IF(AND($A$25=1,$C$139=1,$I$132>0),$J$139,IF(AND($A$25=1,$C$140=1,$I$132>0),$J$140,IF(AND($A$25=1,$C$151=1,$I$144>0),$J$151,IF(AND($A$25=1,$C$152=1,$I$144>0),$J$152,IF(AND($A$25=1,$C$100=1,$I$93>0),$J$100,""))))) ->  | P5: =IF(M5="","",$O5-($O5*$I$10)) ->  | T5: =SUM(T7:T26) -> 0
A6: 6 | I6: Kundenrabatt | K6: =IF($M6="","",IF($T$3=0,"",IF(AND($R6>0,$M6>0),"","Fehler"))) ->  | L6: =IF(AND(R6=0,$A$26>=$A1),VLOOKUP($A1,$B$166:$E$950,4)& " x",IF(AND(R6>0,$A$26>=$A1),VLOOKUP($A1,$C$166:$E$950,3,FALSE)& " x","")) ->  | M6: =IF($A$26>=$A1,IF(AND($A$26>=$A1,$R6=0),VLOOKUP($A1,$B$166:$H$950,7),IF(AND($A$26>=$A1,$R6>0),VLOOKUP($A1,$C$166:$H$950,6,FALSE),"")),"") ->  | N6: =IF($A$26>=$A1,IF(AND($A$26>=$A1,$R6=0),VLOOKUP($A1,$B$166:$H$950,6),IF(AND($A$26>=$A1,$R6>0),VLOOKUP($A1,$C$166:$H$950,5,FALSE))),"") ->  | O6: =IF($A$26>=$A1,IF(AND($A$26>=$A1,$R6=0),VLOOKUP($A1,$B$166:$J$950,9),IF(AND($A$26>=$A1,$R6>0),VLOOKUP($A1,$C$166:$J$950,8,FALSE),"")),"") ->  | P6: =IF(M6="","",$O6-($O6*$I$10)) ->  | Q6: =IF($A$26>=$A1,IF(AND($A$26>=$A1,$R6=0),VLOOKUP($A1,$B$166:$L$950,11),IF(AND($A$26>=$A1,$R6>0),VLOOKUP($A1,$C$166:$N$950,10,FALSE))),"") ->  | R6: =IF(ISNA(VLOOKUP($A1,$C$166:$O$950,15,FALSE)),0,IF($A$26>=$A1,VLOOKUP($A1,$C$166:$O$950,13,FALSE),"")) -> 0 | S6: =IF($M6="","",IF($T$3=0,"",IF(AND($R6>0,$M6>0),"","Reihenfolge"))) ->  | T6: =IF($R6>0,1,0) -> 0
A7: 7 | I7: eintragen | K7: =IF($M7="","",IF($T$3=0,"",IF(AND($R7>0,$M7>0),"","Fehler"))) ->  | P7: =IF(M7="","",$O7-($O7*$I$10)) ->  | R7: 0 | S7: =IF($M7="","",IF($T$3=0,"",IF(AND($R7>0,$M7>0),"","Reihenfolge"))) ->  | T7: =IF($R7>1,1,0) -> 0
A8: 8 | G8: zzgl. MwSt. Summe: | I8: È | J8: =SUM($K$28:$K$632) -> 0 | R8: 0 | S8: =IF($M8="","",IF($T$3=0,"",IF(AND($R8>0,$M8>0),"","Reihenfolge"))) ->  | T8: 0
A9: 9 | R9: 0 | T9: 0
A10: 10 | G10: Kundenrabatt: | I10: 0 | J10: =($J$8*I10)*-1 -> 0 | R10: 0 | T10: 0
A11: 11 | R11: 0 | T11: 0
A12: 12 | G12: zzgl. MwSt. Ihr Netto-EK: | J12: =J8+J10 -> 0 | R12: 0 | T12: 0
A13: 13 | R13: 0 | T13: 0
A14: 14 | R14: 0 | T14: 0
A15: 15 | G15: Kommentarfeld | R15: 0 | T15: 0
A16: 16 | R16: 0 | T16: 0
A17: 17 | F17: Die Bilder können durch anklicken und ziehen mit der Maus vergrößert werden. | R17: 0 | T17: 0
A18: 18 | R18: 0 | T18: 0
A19: 19 | R19: 0 | T19: 0
A20: 20 | R20: 0 | T20: 0
A21: 21 | R21: 0 | T21: 0
A22: 22 | R22: 0 | T22: 0
R23: 0 | T23: 0
A24: =IF(I28<>"",SUM(D167:D1114)*I28,IF(I29<>"",SUM(D167:D1114)*I29,IF(I30<>"",SUM(D167:D1114)*I30,IF(I31<>"",SUM(D167:D1114)*I31,IF(I32<>"",SUM(D167:D1114)*I32,IF(I33<>"",SUM(D167:D1114)*I33,IF(I35<>"",SUM(D167:D1114)*I35,0))))))) -> 0 | B24: Menge Gravurzeichen | R24: 0 | T24: 0
A25: =SUM(A28:A165) -> 0 | B25: Menge Anschl-Felder | R25: 0 | T25: 0
A26: =SUM(A166:A949) -> 0 | B26: Menge Buchsen | F26: Bilder | G26: Bezeichnung | H26: Art.-Nr. | I26: Menge | J26: Einzelpreis | K26: Einzel-Summe | L26: Gravur-Text | O26: Reihenfolge der Bestückung (von links nach rechts)
A27: Menge | B27: Standard-Reihe | C27: Reihenfolge | D27: Gravurzeichen | E27: Kom.Menge | J27: Zu den Anschlüssen
A28: =IF(I28>0,1,"") ->  | B28: =IF($A28=1,COUNTIF($A$27:$A27,1)+1,"") ->  | G28: 19"-Frontplatte 4mm 1HE Aluminium eloxiert (ohne Gravur) | H28: 5004 | J28: =IF(ISNA(VLOOKUP($H28,'AF-Artikel'!$A$3:$D$5437,3)),"",VLOOKUP($H28,'AF-Artikel'!$A$3:$D$5437,3)) -> 61.77 | K28: =I28*J28 -> 0
B29: =IF($A29=1,COUNTIF($A$27:$A28,1)+1,"") ->  | G29: 19"-Frontplatte 4mm 2HE Aluminium eloxiert (ohne Gravur) | H29: 5005 | J29: =IF(ISNA(VLOOKUP($H29,'AF-Artikel'!$A$3:$D$5437,3)),"",VLOOKUP($H29,'AF-Artikel'!$A$3:$D$5437,3)) -> 72.24 | K29: 0
B30: =IF($A30=1,COUNTIF($A$27:$A29,1)+1,"") ->  | G30: 19"-Frontplatte 4mm 3HE Aluminium eloxiert (ohne Gravur) | H30: 5006 | J30: =IF(ISNA(VLOOKUP($H30,'AF-Artikel'!$A$3:$D$5437,3)),"",VLOOKUP($H30,'AF-Artikel'!$A$3:$D$5437,3)) -> 81.67 | K30: 0
B31: =IF($A31=1,COUNTIF($A$27:$A30,1)+1,"") ->  | G31: 19"-Frontplatte 4mm 4HE Aluminium eloxiert (ohne Gravur) | H31: 5007 | J31: =IF(ISNA(VLOOKUP($H31,'AF-Artikel'!$A$3:$D$5437,3)),"",VLOOKUP($H31,'AF-Artikel'!$A$3:$D$5437,3)) -> 91.09 | K31: 0
B32: =IF($A32=1,COUNTIF($A$27:$A31,1)+1,"") ->  | G32: 19"-Frontplatte 4mm 5HE Aluminium eloxiert (ohne Gravur) | H32: 5008 | J32: =IF(ISNA(VLOOKUP($H32,'AF-Artikel'!$A$3:$D$5437,3)),"",VLOOKUP($H32,'AF-Artikel'!$A$3:$D$5437,3)) -> 101.56 | K32: 0
B33: =IF($A33=1,COUNTIF($A$27:$A32,1)+1,"") ->  | G33: 19"-Frontplatte 4mm 6HE Aluminium eloxiert (ohne Gravur) | H33: 5009 | J33: =IF(ISNA(VLOOKUP($H33,'AF-Artikel'!$A$3:$D$5437,3)),"",VLOOKUP($H33,'AF-Artikel'!$A$3:$D$5437,3)) -> 110.98 | K33: 0
B34: =IF($A34=1,COUNTIF($A$27:$A33,1)+1,"") ->  | J34: Zu den Anschlüssen
B35: =IF($A35=1,COUNTIF($A$27:$A34,1)+1,"") ->  | G35: Freie Aluminium-Platte eloxiert | H35: 5016 | J35: =IF(OR($H$36=0,$H$37=0),(21.987),IF(H38=1,((2*($H$36/10+$H$37/10)*(0.2094))+($H$36/10*$H$37/10*(0.1047))+(21.987)),IF(H38>1,((2*($H$36/10+$H$37/10)*0.2094)+($H$36/10*$H$37/10*0.1047)+(21.987))*H38))) -> 21.987 | K35: =IF(OR($H$36="",$H$37=""),0,$I$35*$J$35) -> 0
G36: Breite (mm) | J36: =IF(OR($H$36=0,$H$37=0),(21.987),IF(L37=1,((2*($H$36/10+$H$37/10)*(0.2094))+($H$36/10*$H$37/10*(0.1047))+(21.987)),IF(L37>1,((2*($H$36/10+$H$37/10)*0.2094)+($H$36/10*$H$37/10*0.1047)+(21.987))*L37))) -> 21.987
G37: Höhe (mm)
H38: =IF(H36*H37<20000,1,1.25) -> 1
G39: Gravur je Zeichen
C40: =IF(I40>0,1,"") ->  | E40: =IF($C$40="",0,SUM($I$40*VLOOKUP($A$1,$A$28:$I$166,9))) -> 0 | G40: Entweder hier Menge der Gravur-Zeichen eintragen >>> oder gewünschte Gravur-Texte hinter die ausgewählten Anschlüsse eintragen. | H40: 5010 | J40: =VLOOKUP($H$40,'AF-Artikel'!$A$3:$D$5437,3) -> 0.52 | K40: =IF(AND($A$25=1,$I$28>0),$I$40*$J$40*$I$28,IF(AND($A$25=1,$I$29>0),$I$40*$J$40*$I$29,IF(AND($A$25=1,$I$30>0),$I$40*$J$40*$I$30,IF(AND($A$25=1,$I$31>0),$I$40*$J$40*$I$31,IF(AND($A$25=1,$I$32>0),$I$40*$J$40*$I$32,IF(AND($A$25=1,$I$33>0),$I$40*$J$40*$I$33,IF(AND($A$25=1,$I$35>0),$I$40*$J$40*$I$35,0))))))) -> 0 | L40: =IF(I40>0," Gravur-Texte werden nach hier eingetragener Menge berechnet!","") -> 
B41: =IF($A41=1,COUNTIF($A$27:$A40,1)+1,"") ->  | I41: =IF(A24=0,0,A24) -> 0 | J41: =VLOOKUP($H$40,'AF-Artikel'!$A$3:$D$5437,3) -> 0.52 | K41: =IF(AND($A$25=1,$I40=0,$I$28<>0),$I$41*$J$40*$I$28,IF(AND($A$25=1,$I40=0,$I$29<>0),$I$41*$J$41*$I$29,IF(AND($A$25=1,$I40=0,$I$30<>0),$I$41*$J$40*$I$30,IF(AND($A$25=1,$I40=0,$I$31<>0),$I$41*$J$40*$I$31,IF(AND($A$25=1,$I40=0,$I$32<>0),$I$41*$J$40*$I$32,IF(AND($A$25=1,$I40=0,$I$33<>0),$I$41*$J$40*$I$33,IF(AND($A$25=1,$I40=0,$I$35<>0),$I$41*$J$40*$I$35,0))))))) -> 0 | L41: =IF(AND(A24<>0,I40="")," Gravur-Texte werden nach Anzahl der Buchstaben berechnet!","") -> 
B42: =IF($A42=1,COUNTIF($A$27:$A41,1)+1,"") -> 
B43: =IF($A43=1,COUNTIF($A$27:$A42,1)+1,"") -> 
B44: =IF($A44=1,COUNTIF($A$27:$A43,1)+1,"") -> 
B45: =IF($A45=1,COUNTIF($A$27:$A44,1)+1,"") -> 
B46: =IF($A46=1,COUNTIF($A$27:$A45,1)+1,"") -> 
B47: =IF($A47=1,COUNTIF($A$27:$A46,1)+1,"") -> 
B48: =IF($A48=1,COUNTIF($A$27:$A47,1)+1,"") -> 
B49: =IF($A49=1,COUNTIF($A$27:$A48,1)+1,"") -> 
B50: =IF($A50=1,COUNTIF($A$27:$A49,1)+1,"") -> 
B51: =IF($A51=1,COUNTIF($A$27:$A50,1)+1,"") -> 
B52: =IF($A52=1,COUNTIF($A$27:$A51,1)+1,"") -> 
A53: =IF(I53>0,1,"") ->  | B53: =IF($A53=1,COUNTIF($A$27:$A52,1)+1,"") ->  | J53: Zu den Anschlüssen
A54: =IF(I54>0,1,"") ->  | B54: =IF($A54=1,COUNTIF($A$27:$A53,1)+1,"") ->  | G54: Wandgehäuse groß, schwarz, L x B x H: 215mm x 130mm x 65mm | H54: 5002 | J54: =IF(ISNA(VLOOKUP($H54,'AF-Artikel'!$A$3:$D$5437,3)),"",VLOOKUP($H54,'AF-Artikel'!$A$3:$D$5437,3)) -> 99.47 | K54: =I54*J54 -> 0
G55: Gehäusekorpus aus ABS mit eingelegter Alu-Platte inklusive Montage und Gravur. | J55: =IF(ISNA(VLOOKUP($H55,'AF-Artikel'!$A$3:$D$5437,3)),"",VLOOKUP($H55,'AF-Artikel'!$A$3:$D$5437,3)) -> 
J56: =IF(ISNA(VLOOKUP($H56,'AF-Artikel'!$A$3:$D$5437,3)),"",VLOOKUP($H56,'AF-Artikel'!$A$3:$D$5437,3)) -> 
A57: =IF(I57>0,1,"") ->  | B57: =IF($A57=1,COUNTIF($A$27:$A56,1)+1,"") ->  | G57: Wandgehäuse groß, grau, L x B x H: 215mm x 130mm x 65mm | H57: 5021 | J57: =IF(ISNA(VLOOKUP($H57,'AF-Artikel'!$A$3:$D$5437,3)),"",VLOOKUP($H57,'AF-Artikel'!$A$3:$D$5437,3)) -> 99.47 | K57: =I57*J57 -> 0
G58: Gehäusekorpus aus ABS mit eingelegter Alu-Platte inklusive Montage und Gravur. | J58: =IF(ISNA(VLOOKUP($H58,'AF-Artikel'!$A$3:$D$5437,3)),"",VLOOKUP($H58,'AF-Artikel'!$A$3:$D$5437,3)) -> 
J59: =IF(ISNA(VLOOKUP($H59,'AF-Artikel'!$A$3:$D$5437,3)),"",VLOOKUP($H59,'AF-Artikel'!$A$3:$D$5437,3)) -> 
J60: =IF(ISNA(VLOOKUP($H60,'AF-Artikel'!$A$3:$D$5437,3)),"",VLOOKUP($H60,'AF-Artikel'!$A$3:$D$5437,3)) -> 
J61: =IF(ISNA(VLOOKUP($H61,'AF-Artikel'!$A$3:$D$5437,3)),"",VLOOKUP($H61,'AF-Artikel'!$A$3:$D$5437,3)) -> 
J62: =IF(ISNA(VLOOKUP($H62,'AF-Artikel'!$A$3:$D$5437,3)),"",VLOOKUP($H62,'AF-Artikel'!$A$3:$D$5437,3)) -> 
A63: =IF(I63>0,1,"") ->  | B63: =IF($A63=1,COUNTIF($A$27:$A62,1)+1,"") ->  | G63: Wandgehäuse mittel, schwarz, L x B x H: 160mm x 95mm x 45mm | H63: 5003 | J63: =IF(ISNA(VLOOKUP($H63,'AF-Artikel'!$A$3:$D$5437,3)),"",VLOOKUP($H63,'AF-Artikel'!$A$3:$D$5437,3)) -> 93.18 | K63: =I63*J63 -> 0
G64: Gehäusekorpus aus ABS mit eingelegter Alu-Platte inklusive Montage und Gravur. | J64: =IF(ISNA(VLOOKUP($H64,'AF-Artikel'!$A$3:$D$5437,3)),"",VLOOKUP($H64,'AF-Artikel'!$A$3:$D$5437,3)) -> 
J65: =IF(ISNA(VLOOKUP($H65,'AF-Artikel'!$A$3:$D$5437,3)),"",VLOOKUP($H65,'AF-Artikel'!$A$3:$D$5437,3)) -> 
A66: =IF(I66>0,1,"") ->  | B66: =IF($A66=1,COUNTIF($A$27:$A65,1)+1,"") ->  | G66: Wandgehäuse mittel, grau, L x B x H: 160mm x 95mm x 45mm | H66: 5023 | J66: =IF(ISNA(VLOOKUP($H66,'AF-Artikel'!$A$3:$D$5437,3)),"",VLOOKUP($H66,'AF-Artikel'!$A$3:$D$5437,3)) -> 93.18 | K66: =I66*J66 -> 0
G67: Gehäusekorpus aus ABS mit eingelegter Alu-Platte inklusive Montage und Gravur. | J67: =IF(ISNA(VLOOKUP($H67,'AF-Artikel'!$A$3:$D$5437,3)),"",VLOOKUP($H67,'AF-Artikel'!$A$3:$D$5437,3)) -> 
J68: =IF(ISNA(VLOOKUP($H68,'AF-Artikel'!$A$3:$D$5437,3)),"",VLOOKUP($H68,'AF-Artikel'!$A$3:$D$5437,3)) -> 
J69: =IF(ISNA(VLOOKUP($H69,'AF-Artikel'!$A$3:$D$5437,3)),"",VLOOKUP($H69,'AF-Artikel'!$A$3:$D$5437,3)) -> 
J70: =IF(ISNA(VLOOKUP($H70,'AF-Artikel'!$A$3:$D$5437,3)),"",VLOOKUP($H70,'AF-Artikel'!$A$3:$D$5437,3)) -> 
J71: =IF(ISNA(VLOOKUP($H71,'AF-Artikel'!$A$3:$D$5437,3)),"",VLOOKUP($H71,'AF-Artikel'!$A$3:$D$5437,3)) -> 
A72: =IF(I72>0,1,"") ->  | B72: =IF($A72=1,COUNTIF($A$27:$A71,1)+1,"") ->  | G72: Wandgehäuse klein, schwarz, L x B x H: 125mm x 70mm x 35mm | H72: 5018 | J72: =IF(ISNA(VLOOKUP($H72,'AF-Artikel'!$A$3:$D$5437,3)),"",VLOOKUP($H72,'AF-Artikel'!$A$3:$D$5437,3)) -> 78.53 | K72: =I72*J72 -> 0
G73: Gehäusekorpus aus ABS mit eingelegter Alu-Platte inklusive Montage und Gravur. | J73: =IF(ISNA(VLOOKUP($H73,'AF-Artikel'!$A$3:$D$5437,3)),"",VLOOKUP($H73,'AF-Artikel'!$A$3:$D$5437,3)) -> 
J74: =IF(ISNA(VLOOKUP($H74,'AF-Artikel'!$A$3:$D$5437,3)),"",VLOOKUP($H74,'AF-Artikel'!$A$3:$D$5437,3)) -> 
A75: =IF(I75>0,1,"") ->  | B75: =IF($A75=1,COUNTIF($A$27:$A74,1)+1,"") ->  | G75: Wandgehäuse klein, grau, L x B x H: 125mm x 70mm x 35mm | H75: 5024 | J75: =IF(ISNA(VLOOKUP($H75,'AF-Artikel'!$A$3:$D$5437,3)),"",VLOOKUP($H75,'AF-Artikel'!$A$3:$D$5437,3)) -> 78.53 | K75: =I75*J75 -> 0
G76: Gehäusekorpus aus ABS mit eingelegter Alu-Platte inklusive Montage und Gravur. | J76: =IF(ISNA(VLOOKUP($H76,'AF-Artikel'!$A$3:$D$5437,3)),"",VLOOKUP($H76,'AF-Artikel'!$A$3:$D$5437,3)) -> 
J77: =IF(ISNA(VLOOKUP($H77,'AF-Artikel'!$A$3:$D$5437,3)),"",VLOOKUP($H77,'AF-Artikel'!$A$3:$D$5437,3)) -> 
J78: =IF(ISNA(VLOOKUP($H78,'AF-Artikel'!$A$3:$D$5437,3)),"",VLOOKUP($H78,'AF-Artikel'!$A$3:$D$5437,3)) -> 
A79: =IF(I79>0,1,"") ->  | B79: =IF($A79=1,COUNTIF($A$27:$A78,1)+1,"") ->  | G79: Wandgehäuse, weiß, L x B x H: 80mm x 80mm x 50mm | H79: 5027 | J79: =IF(ISNA(VLOOKUP($H79,'AF-Artikel'!$A$3:$D$5437,3)),"",VLOOKUP($H79,'AF-Artikel'!$A$3:$D$5437,3)) -> 70.13 | K79: =I79*J79 -> 0
G80: Gehäusekorpus aus ABS mit eingelegter Alu-Platte inklusive Montage und Gravur. | J80: =IF(ISNA(VLOOKUP($H80,'AF-Artikel'!$A$3:$D$5437,3)),"",VLOOKUP($H80,'AF-Artikel'!$A$3:$D$5437,3)) -> 
J81: =IF(ISNA(VLOOKUP($H81,'AF-Artikel'!$A$3:$D$5437,3)),"",VLOOKUP($H81,'AF-Artikel'!$A$3:$D$5437,3)) -> 
J82: =IF(ISNA(VLOOKUP($H82,'AF-Artikel'!$A$3:$D$5437,3)),"",VLOOKUP($H82,'AF-Artikel'!$A$3:$D$5437,3)) -> 
A83: =IF(I83>0,1,"") ->  | B83: =IF($A83=1,COUNTIF($A$27:$A77,1)+1,"") ->  | J83: Zu den Anschlüssen
A84: =IF(I84>0,1,"") ->  | B84: =IF($A84=1,COUNTIF($A$27:$A83,1)+1,"") ->  | G84: Aluminiumplatte für Schalterflächenprogramm | H84: 5019 | J84: =IF(ISNA(VLOOKUP($H84,'AF-Artikel'!$A$3:$D$5437,3)),"",VLOOKUP($H84,'AF-Artikel'!$A$3:$D$5437,3)) -> 47.12 | K84: =I84*J84 -> 0
G85: inkl. Gravur und Trägerplatte zur Befestigung an einer Unterputz- bzw. Hohlwanddose | J85: =IF(ISNA(VLOOKUP($H85,'AF-Artikel'!$A$3:$D$5437,3)),"",VLOOKUP($H85,'AF-Artikel'!$A$3:$D$5437,3)) -> 
G86: Bitte geben Sie unbedingt den Hersteller und den Namen des Schalterflächenprogramms an. | J86: =IF(ISNA(VLOOKUP($H86,'AF-Artikel'!$A$3:$D$5437,3)),"",VLOOKUP($H86,'AF-Artikel'!$A$3:$D$5437,3)) -> 
J87: =IF(ISNA(VLOOKUP($H87,'AF-Artikel'!$A$3:$D$5437,3)),"",VLOOKUP($H87,'AF-Artikel'!$A$3:$D$5437,3)) -> 
J88: =IF(ISNA(VLOOKUP($H88,'AF-Artikel'!$A$3:$D$5437,3)),"",VLOOKUP($H88,'AF-Artikel'!$A$3:$D$5437,3)) -> 
J89: =IF(ISNA(VLOOKUP($H89,'AF-Artikel'!$A$3:$D$5437,3)),"",VLOOKUP($H89,'AF-Artikel'!$A$3:$D$5437,3)) -> 
J90: =IF(ISNA(VLOOKUP($H90,'AF-Artikel'!$A$3:$D$5437,3)),"",VLOOKUP($H90,'AF-Artikel'!$A$3:$D$5437,3)) -> 
J91: =IF(ISNA(VLOOKUP($H91,'AF-Artikel'!$A$3:$D$5437,3)),"",VLOOKUP($H91,'AF-Artikel'!$A$3:$D$5437,3)) -> 
A92: =IF(I92>0,1,"") ->  | B92: =IF($A92=1,COUNTIF($A$27:$A91,1)+1,"") ->  | J92: Zu den Anschlüssen
A93: =IF(I93>0,1,"") ->  | B93: =IF($A93=1,COUNTIF($A$27:$A92,1)+1,"") ->  | G93: Tischanschlussbox inkl. Schraubklemmen-Inbusschraube, Montage und Gravur | H93: 5011 | J93: =IF(ISNA(VLOOKUP($H93,'AF-Artikel'!$A$3:$D$5437,3)),"",VLOOKUP($H93,'AF-Artikel'!$A$3:$D$5437,3)) -> 193.7 | K93: =I93*J93 -> 0
G94: '- Auch Steckdosen müssen kalkuliert werden. - | J94: =IF(ISNA(VLOOKUP($H94,'AF-Artikel'!$A$3:$D$5437,3)),"",VLOOKUP($H94,'AF-Artikel'!$A$3:$D$5437,3)) -> 
J95: =IF(ISNA(VLOOKUP($H95,'AF-Artikel'!$A$3:$D$5437,3)),"",VLOOKUP($H95,'AF-Artikel'!$A$3:$D$5437,3)) -> 
J96: =IF(ISNA(VLOOKUP($H96,'AF-Artikel'!$A$3:$D$5437,3)),"",VLOOKUP($H96,'AF-Artikel'!$A$3:$D$5437,3)) -> 
J97: =IF(ISNA(VLOOKUP($H97,'AF-Artikel'!$A$3:$D$5437,3)),"",VLOOKUP($H97,'AF-Artikel'!$A$3:$D$5437,3)) -> 
J98: =IF(ISNA(VLOOKUP($H98,'AF-Artikel'!$A$3:$D$5437,3)),"",VLOOKUP($H98,'AF-Artikel'!$A$3:$D$5437,3)) -> 
J99: =IF(ISNA(VLOOKUP($H99,'AF-Artikel'!$A$3:$D$5437,3)),"",VLOOKUP($H99,'AF-Artikel'!$A$3:$D$5437,3)) -> 
C100: =IF(I$100=0,"",IF(I$100>1,0,IF(I$100=1,1,0))) ->  | E100: =IF(OR($C100="",$I$93=""),0,SUM($I100*VLOOKUP($A$1,$A$93:$I$107,9))) -> 0 | G100: Option Flügelspannschraube M6 | H100: 1763 | J100: =IF(ISNA(VLOOKUP($H100,'AF-Artikel'!$A$3:$D$5437,3)),"",VLOOKUP($H100,'AF-Artikel'!$A$3:$D$5437,3)) -> 25.6 | K100: =I100*J100*E100 -> 0
J101: =IF(ISNA(VLOOKUP($H101,'AF-Artikel'!$A$3:$D$5437,3)),"",VLOOKUP($H101,'AF-Artikel'!$A$3:$D$5437,3)) -> 
J102: =IF(ISNA(VLOOKUP($H102,'AF-Artikel'!$A$3:$D$5437,3)),"",VLOOKUP($H102,'AF-Artikel'!$A$3:$D$5437,3)) -> 
J103: =IF(ISNA(VLOOKUP($H103,'AF-Artikel'!$A$3:$D$5437,3)),"",VLOOKUP($H103,'AF-Artikel'!$A$3:$D$5437,3)) -> 
J104: =IF(ISNA(VLOOKUP($H104,'AF-Artikel'!$A$3:$D$5437,3)),"",VLOOKUP($H104,'AF-Artikel'!$A$3:$D$5437,3)) -> 
J105: =IF(ISNA(VLOOKUP($H105,'AF-Artikel'!$A$3:$D$5437,3)),"",VLOOKUP($H105,'AF-Artikel'!$A$3:$D$5437,3)) -> 
J106: =IF(ISNA(VLOOKUP($H106,'AF-Artikel'!$A$3:$D$5437,3)),"",VLOOKUP($H106,'AF-Artikel'!$A$3:$D$5437,3)) -> 
J107: =IF(ISNA(VLOOKUP($H107,'AF-Artikel'!$A$3:$D$5437,3)),"",VLOOKUP($H107,'AF-Artikel'!$A$3:$D$5437,3)) -> 
A108: =IF(I108>0,1,"") ->  | B108: =IF($A108=1,COUNTIF($A$27:$A107,1)+1,"") ->  | J108: Zu den Anschlüssen
A109: =IF(I109>0,1,"") ->  | B109: =IF($A109=1,COUNTIF($A$27:$A108,1)+1,"") ->  | G109: Tischeinbaufeld, ausklappbar | H109: 5012 | J109: =IF(ISNA(VLOOKUP($H109,'AF-Artikel'!$A$3:$D$5437,3)),"",VLOOKUP($H109,'AF-Artikel'!$A$3:$D$5437,3)) -> 303.63 | K109: =I109*J109 -> 0
G110: Edelstahl, inkl. unterer Abdeckwanne, Montage und Gravur. Fertigungsbedingt erfolgt die Lieferung immer mit 2 Schukosteckdosen, die am Ende der Tabelle eingerechnet werden müssen. | J110: =IF(ISNA(VLOOKUP($H110,'AF-Artikel'!$A$3:$D$5437,3)),"",VLOOKUP($H110,'AF-Artikel'!$A$3:$D$5437,3)) -> 
J111: =IF(ISNA(VLOOKUP($H111,'AF-Artikel'!$A$3:$D$5437,3)),"",VLOOKUP($H111,'AF-Artikel'!$A$3:$D$5437,3)) -> 
J112: =IF(ISNA(VLOOKUP($H112,'AF-Artikel'!$A$3:$D$5437,3)),"",VLOOKUP($H112,'AF-Artikel'!$A$3:$D$5437,3)) -> 
J113: =IF(ISNA(VLOOKUP($H113,'AF-Artikel'!$A$3:$D$5437,3)),"",VLOOKUP($H113,'AF-Artikel'!$A$3:$D$5437,3)) -> 
J114: =IF(ISNA(VLOOKUP($H114,'AF-Artikel'!$A$3:$D$5437,3)),"",VLOOKUP($H114,'AF-Artikel'!$A$3:$D$5437,3)) -> 
J115: =IF(ISNA(VLOOKUP($H115,'AF-Artikel'!$A$3:$D$5437,3)),"",VLOOKUP($H115,'AF-Artikel'!$A$3:$D$5437,3)) -> 
J116: =IF(ISNA(VLOOKUP($H116,'AF-Artikel'!$A$3:$D$5437,3)),"",VLOOKUP($H116,'AF-Artikel'!$A$3:$D$5437,3)) -> 
J117: =IF(ISNA(VLOOKUP($H117,'AF-Artikel'!$A$3:$D$5437,3)),"",VLOOKUP($H117,'AF-Artikel'!$A$3:$D$5437,3)) -> 
J118: =IF(ISNA(VLOOKUP($H118,'AF-Artikel'!$A$3:$D$5437,3)),"",VLOOKUP($H118,'AF-Artikel'!$A$3:$D$5437,3)) -> 
J119: =IF(ISNA(VLOOKUP($H119,'AF-Artikel'!$A$3:$D$5437,3)),"",VLOOKUP($H119,'AF-Artikel'!$A$3:$D$5437,3)) -> 
A120: =IF(I120>0,1,"") ->  | B120: =IF($A120=1,COUNTIF($A$27:$A108,1)+1,"") ->  | J120: Zu den Anschlüssen
A121: =IF(I121>0,1,"") ->  | B121: =IF($A121=1,COUNTIF($A$27:$A120,1)+1,"") ->  | G121: Tischeinbaufeld 162, feststehend LxB 162mm x 121mm, incl. Montage und Gravur | H121: 5040 | J121: =IF(ISNA(VLOOKUP($H121,'AF-Artikel'!$A$3:$D$5437,3)),"",VLOOKUP($H121,'AF-Artikel'!$A$3:$D$5437,3)) -> 241.75 | K121: =I121*J121 -> 0
G122: '- Auch Steckdosen müssen kalkuliert werden. -
C123: =IF(SUM(I$123:I$125)=0,"",IF(SUM(I$123:I$125)>1,0,IF(AND(SUM(I$123:I$125)>=1,I123>=1),1,0))) ->  | E123: =IF(OR($C123="",$I$121=""),0,SUM($I123*VLOOKUP($A$1,$A$121:$I$130,9))) -> 0 | G123: =IF(ISNA(VLOOKUP($H123,'AF-Artikel'!$A$3:$D$5437,4)),"",VLOOKUP($H123,'AF-Artikel'!$A$3:$D$5437,4)) -> Option Aluminium 90° Außenkante 162mm | H123: 5041 | J123: =IF(ISNA(VLOOKUP($H123,'AF-Artikel'!$A$3:$D$5437,3)),"",VLOOKUP($H123,'AF-Artikel'!$A$3:$D$5437,3)) -> 99.18 | K123: =I123*J123*E123 -> 0 | L123: =IF(OR(AND(I123=1,I124=1),AND(I123=1,I125=1),AND(I124=1,I125=1))," Es darf nur eine Option aktiviert sein!","") -> 
C124: =IF(SUM(I$123:I$125)=0,"",IF(SUM(I$123:I$125)>1,0,IF(AND(SUM(I$123:I$125)>=1,I124>=1),1,0))) ->  | E124: =IF(OR($C124="",$I$121=""),0,SUM($I124*VLOOKUP($A$1,$A$121:$I$130,9))) -> 0 | G124: =IF(ISNA(VLOOKUP($H124,'AF-Artikel'!$A$3:$D$5437,4)),"",VLOOKUP($H124,'AF-Artikel'!$A$3:$D$5437,4)) -> Option Aluminium 45° Außenkante 162mm | H124: 5042 | J124: =IF(ISNA(VLOOKUP($H124,'AF-Artikel'!$A$3:$D$5437,3)),"",VLOOKUP($H124,'AF-Artikel'!$A$3:$D$5437,3)) -> 136.11 | K124: =I124*J124*E124 -> 0
C125: =IF(SUM(I$123:I$125)=0,"",IF(SUM(I$123:I$125)>1,0,IF(AND(SUM(I$123:I$125)>=1,I125>=1),1,0))) ->  | E125: =IF(OR($C125="",$I$121=""),0,SUM($I125*VLOOKUP($A$1,$A$121:$I$130,9))) -> 0 | G125: =IF(ISNA(VLOOKUP($H125,'AF-Artikel'!$A$3:$D$5437,4)),"",VLOOKUP($H125,'AF-Artikel'!$A$3:$D$5437,4)) -> Sonderlackierung Tischeinbaufeld (Preis pro Charge) | H125: 5523 | J125: =IF(ISNA(VLOOKUP($H125,'AF-Artikel'!$A$3:$D$5437,3)),"",VLOOKUP($H125,'AF-Artikel'!$A$3:$D$5437,3)) -> 99.47 | K125: =I125*J125*E125 -> 0
C127: =IF(AND(I127>0,I128=""),1,"") ->  | L127: =IF(OR(AND(I127=1,I128=1),AND(I127=1,I129=1),AND(I128=1,I129=1))," Es darf nur eine Option aktiviert sein!","") -> 
C128: =IF(AND(I128>0,I129=""),1,"") -> 
A131: =IF(I131>0,1,"") ->  | B131: =IF($A131=1,COUNTIF($A$27:$A119,1)+1,"") ->  | J131: Zu den Anschlüssen
A132: =IF(I132>0,1,"") ->  | B132: =IF($A132=1,COUNTIF($A$27:$A131,1)+1,"") ->  | G132: Tischeinbaufeld 315, feststehend LxB 315mm x 190mm, incl. Montage und Gravur | H132: 5020 | J132: =IF(ISNA(VLOOKUP($H132,'AF-Artikel'!$A$3:$D$5437,3)),"",VLOOKUP($H132,'AF-Artikel'!$A$3:$D$5437,3)) -> 319.34 | K132: =I132*J132 -> 0
G133: - Auch Steckdosen müssen kalkuliert werden. - | J133: =IF(ISNA(VLOOKUP($H133,'AF-Artikel'!$A$3:$D$5437,3)),"",VLOOKUP($H133,'AF-Artikel'!$A$3:$D$5437,3)) -> 
C134: =IF(SUM(I$134:I$137)=0,"",IF(SUM(I$134:I$137)>1,0,IF(AND(SUM(I$134:I$137)>=1,I134>=1),1,0))) ->  | E134: =IF(OR($C134="",$I$132=""),0,SUM($I134*VLOOKUP($A$1,$A$132:$I$142,9))) -> 0 | G134: =IF(ISNA(VLOOKUP($H134,'AF-Artikel'!$A$3:$D$5437,4)),"",VLOOKUP($H134,'AF-Artikel'!$A$3:$D$5437,4)) -> Option Aluminiumoberfläche mit Außenkante 90° für Tischeinbaufeld 28TE/315mm | H134: 5524 | J134: =IF(ISNA(VLOOKUP($H134,'AF-Artikel'!$A$3:$D$5437,3)),"",VLOOKUP($H134,'AF-Artikel'!$A$3:$D$5437,3)) -> 171.32 | K134: =I134*J134*E134 -> 0 | L134: =IF(SUM(I134:I137)>1," Es darf nur eine Option aktiviert sein!","") -> 
C135: =IF(SUM(I$134:I$137)=0,"",IF(SUM(I$134:I$137)>1,0,IF(AND(SUM(I$134:I$137)>=1,I135>=1),1,0))) ->  | E135: =IF(OR($C135="",$I$132=""),0,SUM($I135*VLOOKUP($A$1,$A$132:$I$142,9))) -> 0 | G135: =IF(ISNA(VLOOKUP($H135,'AF-Artikel'!$A$3:$D$5437,4)),"",VLOOKUP($H135,'AF-Artikel'!$A$3:$D$5437,4)) -> Option Aluminiumoberfläche incl. angefaster Außenkante 45° für Tischeinbaufeld 28TE/315mm | H135: 5538 | J135: =IF(ISNA(VLOOKUP($H135,'AF-Artikel'!$A$3:$D$5437,3)),"",VLOOKUP($H135,'AF-Artikel'!$A$3:$D$5437,3)) -> 237.94 | K135: =I135*J135*E135 -> 0
C136: =IF(SUM(I$134:I$137)=0,"",IF(SUM(I$134:I$137)>1,0,IF(AND(SUM(I$134:I$137)>=1,I136>=1),1,0))) ->  | E136: =IF(OR($C136="",$I$132=""),0,SUM($I136*VLOOKUP($A$1,$A$132:$I$142,9))) -> 0 | G136: =IF(ISNA(VLOOKUP($H136,'AF-Artikel'!$A$3:$D$5437,4)),"",VLOOKUP($H136,'AF-Artikel'!$A$3:$D$5437,4)) -> Option Edelstahloberfläche mit Außenkante 90° für Tischeinbaufeld 28TE/315mm | H136: 5528 | J136: =IF(ISNA(VLOOKUP($H136,'AF-Artikel'!$A$3:$D$5437,3)),"",VLOOKUP($H136,'AF-Artikel'!$A$3:$D$5437,3)) -> 247.48 | K136: =I136*J136*E136 -> 0
C137: =IF(SUM(I$134:I$137)=0,"",IF(SUM(I$134:I$137)>1,0,IF(AND(SUM(I$134:I$137)>=1,I137>=1),1,0))) ->  | E137: =IF(OR($C137="",$I$132=""),0,SUM($I137*VLOOKUP($A$1,$A$132:$I$142,9))) -> 0 | G137: =IF(ISNA(VLOOKUP($H137,'AF-Artikel'!$A$3:$D$5437,4)),"",VLOOKUP($H137,'AF-Artikel'!$A$3:$D$5437,4)) -> Sonderlackierung Tischeinbaufeld (Preis pro Charge) | H137: 5523 | J137: =IF(ISNA(VLOOKUP($H137,'AF-Artikel'!$A$3:$D$5437,3)),"",VLOOKUP($H137,'AF-Artikel'!$A$3:$D$5437,3)) -> 99.47 | K137: =I137*J137*E137 -> 0
K138: =IF(ISNA(VLOOKUP($H138,'AF-Artikel'!$A$3:$D$5437,3)),"",VLOOKUP($H138,'AF-Artikel'!$A$3:$D$5437,3)) -> 
C139: =IF(AND(I139>0,I140=""),1,"") ->  | E139: =IF(OR($C139="",$I$132=""),0,SUM($I139*VLOOKUP($A$1,$A$132:$I$142,9))) -> 0 | G139: =IF(ISNA(VLOOKUP($H139,'AF-Artikel'!$A$3:$D$5437,4)),"",VLOOKUP($H139,'AF-Artikel'!$A$3:$D$5437,4)) -> Option integrierter LAN-Switch mit 5 Ports für Tischanschl. 28TE/315 | H139: 5529 | J139: =IF(ISNA(VLOOKUP($H139,'AF-Artikel'!$A$3:$D$5437,3)),"",VLOOKUP($H139,'AF-Artikel'!$A$3:$D$5437,3)) -> 142.78 | K139: =I139*J139*E139 -> 0 | L139: =IF(OR(AND(I139=1,I140=1),AND(I139=1,I141=1),AND(I140=1,I141=1))," Es darf nur eine Option aktiviert sein!","") -> 
C140: =IF(AND(I140>0,I141=""),1,"") ->  | E140: =IF(OR($C140="",$I$132=""),0,SUM($I140*VLOOKUP($A$1,$A$132:$I$142,9))) -> 0 | G140: =IF(ISNA(VLOOKUP($H140,'AF-Artikel'!$A$3:$D$5437,4)),"",VLOOKUP($H140,'AF-Artikel'!$A$3:$D$5437,4)) -> Option Deckel horizontal, Kabelausgang hinten für Durchführungsbu. | H140: 5520-HOR | J140: =IF(ISNA(VLOOKUP($H140,'AF-Artikel'!$A$3:$D$5437,3)),"",VLOOKUP($H140,'AF-Artikel'!$A$3:$D$5437,3)) -> 0 | K140: =I140*J140*E140 -> 0
J141: =IF(ISNA(VLOOKUP($H141,'AF-Artikel'!$A$3:$D$5437,3)),"",VLOOKUP($H141,'AF-Artikel'!$A$3:$D$5437,3)) -> 
J142: =IF(ISNA(VLOOKUP($H142,'AF-Artikel'!$A$3:$D$5437,3)),"",VLOOKUP($H142,'AF-Artikel'!$A$3:$D$5437,3)) -> 
A143: =IF(I143>0,1,"") ->  | B143: =IF($A143=1,COUNTIF($A$27:$A142,1)+1,"") ->  | J143: Zu den Anschlüssen
A144: =IF(I144>0,1,"") ->  | B144: =IF($A144=1,COUNTIF($A$27:$A143,1)+1,"") ->  | G144: Tischeinbaufeld 395, feststehend LxB 395mm x 190mm, incl. Montage und Gravur | H144: 5022 | J144: =IF(ISNA(VLOOKUP($H144,'AF-Artikel'!$A$3:$D$5437,3)),"",VLOOKUP($H144,'AF-Artikel'!$A$3:$D$5437,3)) -> 355.98 | K144: =I144*J144 -> 0
G145: - Auch Steckdosen müssen kalkuliert werden. - | J145: =IF(ISNA(VLOOKUP($H145,'AF-Artikel'!$A$3:$D$5437,3)),"",VLOOKUP($H145,'AF-Artikel'!$A$3:$D$5437,3)) -> 
C146: =IF(SUM(I$146:I$149)=0,"",IF(SUM(I$146:I$149)>1,0,IF(AND(SUM(I$146:I$149)>=1,I146>=1),1,0))) ->  | E146: =IF(OR($C146="",$I$144=""),0,SUM($I146*VLOOKUP($A$1,$A$144:$I$154,9))) -> 0 | G146: =IF(ISNA(VLOOKUP($H146,'AF-Artikel'!$A$3:$D$5437,4)),"",VLOOKUP($H146,'AF-Artikel'!$A$3:$D$5437,4)) -> Option Aluminiumoberfläche mit Außenkante 90° für Tischeinbaufeld 44TE/395mm | H146: 5526 | J146: =IF(ISNA(VLOOKUP($H146,'AF-Artikel'!$A$3:$D$5437,3)),"",VLOOKUP($H146,'AF-Artikel'!$A$3:$D$5437,3)) -> 192.23 | K146: =I146*J146*E146 -> 0 | L146: =IF(SUM(I146:I149)>1," Es darf nur eine Option aktiviert sein!","") -> 
C147: =IF(SUM(I$146:I$149)=0,"",IF(SUM(I$146:I$149)>1,0,IF(AND(SUM(I$146:I$149)>=1,I147>=1),1,0))) ->  | E147: =IF(OR($C147="",$I$144=""),0,SUM($I147*VLOOKUP($A$1,$A$144:$I$154,9))) -> 0 | G147: =IF(ISNA(VLOOKUP($H147,'AF-Artikel'!$A$3:$D$5437,4)),"",VLOOKUP($H147,'AF-Artikel'!$A$3:$D$5437,4)) -> Option Aluminiumoberfläche incl. angefaster Außenkante 45° für Tischeinbaufeld 44TE/395mm | H147: 5539 | J147: =IF(ISNA(VLOOKUP($H147,'AF-Artikel'!$A$3:$D$5437,3)),"",VLOOKUP($H147,'AF-Artikel'!$A$3:$D$5437,3)) -> 266.99 | K147: =I147*J147*E147 -> 0
C148: =IF(SUM(I$146:I$149)=0,"",IF(SUM(I$146:I$149)>1,0,IF(AND(SUM(I$146:I$149)>=1,I148>=1),1,0))) ->  | E148: =IF(OR($C148="",$I$144=""),0,SUM($I148*VLOOKUP($A$1,$A$144:$I$154,9))) -> 0 | G148: =IF(ISNA(VLOOKUP($H148,'AF-Artikel'!$A$3:$D$5437,4)),"",VLOOKUP($H148,'AF-Artikel'!$A$3:$D$5437,4)) -> Option Edelstahloberfläche mit Außenkante 90° für Tischeinbaufeld 44TE/395mm | H148: 5537 | J148: =IF(ISNA(VLOOKUP($H148,'AF-Artikel'!$A$3:$D$5437,3)),"",VLOOKUP($H148,'AF-Artikel'!$A$3:$D$5437,3)) -> 284.78 | K148: =I148*J148*E148 -> 0
C149: =IF(SUM(I$146:I$149)=0,"",IF(SUM(I$146:I$149)>1,0,IF(AND(SUM(I$146:I$149)>=1,I149>=1),1,0))) ->  | E149: =IF(OR($C149="",$I$144=""),0,SUM($I149*VLOOKUP($A$1,$A$144:$I$154,9))) -> 0 | G149: =IF(ISNA(VLOOKUP($H149,'AF-Artikel'!$A$3:$D$5437,4)),"",VLOOKUP($H149,'AF-Artikel'!$A$3:$D$5437,4)) -> Sonderlackierung Tischeinbaufeld (Preis pro Charge) | H149: 5523 | J149: =IF(ISNA(VLOOKUP($H149,'AF-Artikel'!$A$3:$D$5437,3)),"",VLOOKUP($H149,'AF-Artikel'!$A$3:$D$5437,3)) -> 99.47 | K149: =I149*J149*E149 -> 0
C151: =IF(AND(I151>0,I152=""),1,"") ->  | E151: =IF(OR($C151="",$I$144=""),0,SUM($I151*VLOOKUP($A$1,$A$144:$I$154,9))) -> 0 | G151: =IF(ISNA(VLOOKUP($H151,'AF-Artikel'!$A$3:$D$5437,4)),"",VLOOKUP($H151,'AF-Artikel'!$A$3:$D$5437,4)) -> Option integrierter LAN-Switch mit 8 Ports für Tischanschl. 44TE/395 | H151: 5536 | J151: =IF(ISNA(VLOOKUP($H151,'AF-Artikel'!$A$3:$D$5437,3)),"",VLOOKUP($H151,'AF-Artikel'!$A$3:$D$5437,3)) -> 161.81 | K151: =I151*J151*E151 -> 0 | L151: =IF(OR(AND(I151=1,I152=1),AND(I151=1,I153=1),AND(I152=1,I153=1))," Es darf nur eine Option aktiviert sein!","") -> 
C152: =IF(AND(I152>0,I153=""),1,"") ->  | E152: =IF(OR($C152="",$I$144=""),0,SUM($I152*VLOOKUP($A$1,$A$144:$I$154,9))) -> 0 | G152: =IF(ISNA(VLOOKUP($H152,'AF-Artikel'!$A$3:$D$5437,4)),"",VLOOKUP($H152,'AF-Artikel'!$A$3:$D$5437,4)) -> Option Deckel horizontal, Kabelausgang hinten für Durchführungsbu. | H152: 5520-HOR | J152: =IF(ISNA(VLOOKUP($H152,'AF-Artikel'!$A$3:$D$5437,3)),"",VLOOKUP($H152,'AF-Artikel'!$A$3:$D$5437,3)) -> 0 | K152: =I152*J152*E152 -> 0
J154: =IF(ISNA(VLOOKUP($H154,'AF-Artikel'!$A$3:$D$5437,3)),"",VLOOKUP($H154,'AF-Artikel'!$A$3:$D$5437,3)) -> 
A155: =IF(I155>0,1,"") ->  | B155: =IF($A155=1,COUNTIF($A$27:$A154,1)+1,"") ->  | J155: Zu den Anschlüssen
A156: =IF(I156>0,1,"") ->  | B156: =IF($A156=1,COUNTIF($A$27:$A155,1)+1,"") ->  | G156: Tischeinbaufeld, rund, ausziehbar, incl. Montage und Gravur | H156: 5017 | J156: =IF(ISNA(VLOOKUP($H156,'AF-Artikel'!$A$3:$D$5437,3)),"",VLOOKUP($H156,'AF-Artikel'!$A$3:$D$5437,3)) -> 269.08 | K156: =I156*J156 -> 0
G157: - Auch Steckdosen müssen kalkuliert werden. -
J158: =IF(ISNA(VLOOKUP($H158,'AF-Artikel'!$A$3:$D$5437,3)),"",VLOOKUP($H158,'AF-Artikel'!$A$3:$D$5437,3)) -> 
J159: =IF(ISNA(VLOOKUP($H159,'AF-Artikel'!$A$3:$D$5437,3)),"",VLOOKUP($H159,'AF-Artikel'!$A$3:$D$5437,3)) -> 
J160: =IF(ISNA(VLOOKUP($H160,'AF-Artikel'!$A$3:$D$5437,3)),"",VLOOKUP($H160,'AF-Artikel'!$A$3:$D$5437,3)) -> 
J161: =IF(ISNA(VLOOKUP($H161,'AF-Artikel'!$A$3:$D$5437,3)),"",VLOOKUP($H161,'AF-Artikel'!$A$3:$D$5437,3)) -> 
J162: =IF(ISNA(VLOOKUP($H162,'AF-Artikel'!$A$3:$D$5437,3)),"",VLOOKUP($H162,'AF-Artikel'!$A$3:$D$5437,3)) -> 
J163: =IF(ISNA(VLOOKUP($H163,'AF-Artikel'!$A$3:$D$5437,3)),"",VLOOKUP($H163,'AF-Artikel'!$A$3:$D$5437,3)) -> 
J164: =IF(ISNA(VLOOKUP($H164,'AF-Artikel'!$A$3:$D$5437,3)),"",VLOOKUP($H164,'AF-Artikel'!$A$3:$D$5437,3)) -> 
J165: =IF(ISNA(VLOOKUP($H165,'AF-Artikel'!$A$3:$D$5437,3)),"",VLOOKUP($H165,'AF-Artikel'!$A$3:$D$5437,3)) -> 
A167: =IF(I167>0,1,"") ->  | B167: =IF($A167=1,COUNTIF($A166:$A$166,1)+1,"") ->  | C167: =IF(AND($I167>0,$O167>0),$O167,"") ->  | D167: =IF($I167>0,LEN($L167)*$A$25,"0") -> 0 | E167: =IF($A$25=0,$I167,IF(OR($A167="",$A$25>0),$I167,SUM($I167*VLOOKUP($A$1,$A$28:$I$165,9)))) -> 0 | G167: VGA-Buchse Lötanschluss | H167: 5100 | J167: =IF(ISNA(VLOOKUP($H167,'AF-Artikel'!$A$3:$D$5437,3)),"",VLOOKUP($H167,'AF-Artikel'!$A$3:$D$5437,3)) -> 9.89 | K167: =I167*J167 -> 0
A168: =IF(I168>0,1,"") ->  | B168: =IF($A168=1,COUNTIF($A$166:$A167,1)+1,"") ->  | C168: =IF(AND($I168>0,$O168>0),$O168,"") ->  | D168: =IF($I168>0,LEN($L168)*$A$25,"0") -> 0 | E168: 0 | G168: VGA-Buchse rückseitig steckbar (Buchse) | H168: 5187 | J168: =IF(ISNA(VLOOKUP($H168,'AF-Artikel'!$A$3:$D$5437,3)),"",VLOOKUP($H168,'AF-Artikel'!$A$3:$D$5437,3)) -> 13.14 | K168: =I168*J168 -> 0
A169: =IF(I169>0,1,"") ->  | B169: =IF($A169=1,COUNTIF($A$166:$A168,1)+1,"") ->  | D169: =IF($I169>0,LEN($L169)*$A$25,"0") -> 0 | E169: 0 | G169: VGA-Buchse auf 5xBNC-Kupplung 30cm | H169: 5101 | J169: =IF(ISNA(VLOOKUP($H169,'AF-Artikel'!$A$3:$D$5437,3)),"",VLOOKUP($H169,'AF-Artikel'!$A$3:$D$5437,3)) -> 56.88 | K169: =I169*J169 -> 0
B170: =IF($A170=1,COUNTIF($A$166:$A169,1)+1,"") ->  | E170: 0 | G170: zusätzliche Kabellänge für obiges Kabel in m | H170: 5300 | J170: =IF(ISNA(VLOOKUP($H170,'AF-Artikel'!$A$3:$D$5437,3)),"",VLOOKUP($H170,'AF-Artikel'!$A$3:$D$5437,3)) -> 4.82 | K170: 0
B171: =IF($A171=1,COUNTIF($A$166:$A170,1)+1,"") ->  | D171: =IF($I171>0,LEN($L171)*$A$25,"0") -> 0 | E171: 0 | G171: VGA-Buchse auf 5xBNC-Stecker 30cm | H171: 5102 | J171: =IF(ISNA(VLOOKUP($H171,'AF-Artikel'!$A$3:$D$5437,3)),"",VLOOKUP($H171,'AF-Artikel'!$A$3:$D$5437,3)) -> 47.26 | K171: 0
B172: =IF($A172=1,COUNTIF($A$166:$A171,1)+1,"") ->  | E172: 0 | G172: zusätzliche Kabellänge für obiges Kabel in m | H172: 5300 | J172: =IF(ISNA(VLOOKUP($H172,'AF-Artikel'!$A$3:$D$5437,3)),"",VLOOKUP($H172,'AF-Artikel'!$A$3:$D$5437,3)) -> 4.82 | K172: 0
B173: =IF($A173=1,COUNTIF($A$166:$A172,1)+1,"") ->  | D173: =IF($I173>0,LEN($L173)*$A$25,"0") -> 0 | E173: 0 | G173: VGA-Buchse auf VGA-Kupplung 30cm | H173: 5103 | J173: =IF(ISNA(VLOOKUP($H173,'AF-Artikel'!$A$3:$D$5437,3)),"",VLOOKUP($H173,'AF-Artikel'!$A$3:$D$5437,3)) -> 43.99 | K173: 0
B174: =IF($A174=1,COUNTIF($A$166:$A173,1)+1,"") ->  | E174: 0 | G174: zusätzliche Kabellänge für obiges Kabel in m | H174: 5300 | J174: =IF(ISNA(VLOOKUP($H174,'AF-Artikel'!$A$3:$D$5437,3)),"",VLOOKUP($H174,'AF-Artikel'!$A$3:$D$5437,3)) -> 4.82 | K174: 0
B175: =IF($A175=1,COUNTIF($A$166:$A174,1)+1,"") ->  | D175: =IF($I175>0,LEN($L175)*$A$25,"0") -> 0 | E175: 0 | G175: VGA-Buchse auf VGA-Stecker 30cm | H175: 5104 | J175: =IF(ISNA(VLOOKUP($H175,'AF-Artikel'!$A$3:$D$5437,3)),"",VLOOKUP($H175,'AF-Artikel'!$A$3:$D$5437,3)) -> 43.99 | K175: 0
B176: =IF($A176=1,COUNTIF($A$166:$A175,1)+1,"") ->  | E176: 0 | G176: zusätzliche Kabellänge für obiges Kabel in m | H176: 5300 | J176: =IF(ISNA(VLOOKUP($H176,'AF-Artikel'!$A$3:$D$5437,3)),"",VLOOKUP($H176,'AF-Artikel'!$A$3:$D$5437,3)) -> 4.82 | K176: 0
A177: =IF(I177>0,1,"") ->  | B177: =IF($A177=1,COUNTIF($A$166:$A176,1)+1,"") ->  | D177: =IF($I177>0,LEN($L177)*$A$25,"0") -> 0 | E177: 0 | G177: VGA-Buchse auf offenes Kabelende 30cm | H177: 5223 | J177: =IF(ISNA(VLOOKUP($H177,'AF-Artikel'!$A$3:$D$5437,3)),"",VLOOKUP($H177,'AF-Artikel'!$A$3:$D$5437,3)) -> 33.82 | K177: =I177*J177 -> 0
A178: =IF(I178>0,1,"") ->  | B178: =IF($A178=1,COUNTIF($A$166:$A177,1)+1,"") ->  | E178: 0 | G178: zusätzliche Kabellänge für obiges Kabel in m | H178: 5300 | J178: =IF(ISNA(VLOOKUP($H178,'AF-Artikel'!$A$3:$D$5437,3)),"",VLOOKUP($H178,'AF-Artikel'!$A$3:$D$5437,3)) -> 4.82 | K178: =I178*J178 -> 0
B179: =IF($A179=1,COUNTIF($A$166:$A178,1)+1,"") ->  | E179: 0
B180: =IF($A180=1,COUNTIF($A$166:$A179,1)+1,"") ->  | D180: =IF($I180>0,LEN($L180)*$A$25,"0") -> 0 | E180: 0 | G180: DVI-Buchse Lötanschluss | H180: 5196 | J180: =IF(ISNA(VLOOKUP($H180,'AF-Artikel'!$A$3:$D$5437,3)),"",VLOOKUP($H180,'AF-Artikel'!$A$3:$D$5437,3)) -> 13.19 | K180: =I180*J180 -> 0
B181: =IF($A181=1,COUNTIF($A$166:$A180,1)+1,"") ->  | D181: =IF($I181>0,LEN($L181)*$A$25,"0") -> 0 | E181: 0 | G181: DVI-Buchse rückseitig steckbar (Buchse) | H181: 5202 | J181: =IF(ISNA(VLOOKUP($H181,'AF-Artikel'!$A$3:$D$5437,3)),"",VLOOKUP($H181,'AF-Artikel'!$A$3:$D$5437,3)) -> 28.79 | K181: 0
B182: =IF($A182=1,COUNTIF($A$166:$A181,1)+1,"") ->  | D182: =IF($I182>0,LEN($L182)*$A$25,"0") -> 0 | E182: 0 | G182: DVI-Buchse auf DVI-D-Stecker 30cm | H182: 5197 | J182: =IF(ISNA(VLOOKUP($H182,'AF-Artikel'!$A$3:$D$5437,3)),"",VLOOKUP($H182,'AF-Artikel'!$A$3:$D$5437,3)) -> 56.12 | K182: 0
B183: =IF($A183=1,COUNTIF($A$166:$A182,1)+1,"") ->  | E183: 0 | G183: zusätzliche Kabellänge für obiges Kabel in m | H183: 5313 | J183: =IF(ISNA(VLOOKUP($H183,'AF-Artikel'!$A$3:$D$5437,3)),"",VLOOKUP($H183,'AF-Artikel'!$A$3:$D$5437,3)) -> 6.6 | K183: 0
B184: =IF($A184=1,COUNTIF($A$166:$A183,1)+1,"") ->  | D184: =IF($I184>0,LEN($L184)*$A$25,"0") -> 0 | E184: 0 | G184: DVI-Buchse auf DVI-I-Stecker 30cm | H184: 5217 | J184: =IF(ISNA(VLOOKUP($H184,'AF-Artikel'!$A$3:$D$5437,3)),"",VLOOKUP($H184,'AF-Artikel'!$A$3:$D$5437,3)) -> 66.17 | K184: 0
B185: =IF($A185=1,COUNTIF($A$166:$A184,1)+1,"") ->  | E185: 0 | G185: zusätzliche Kabellänge für obiges Kabel in m | H185: 5314 | J185: =IF(ISNA(VLOOKUP($H185,'AF-Artikel'!$A$3:$D$5437,3)),"",VLOOKUP($H185,'AF-Artikel'!$A$3:$D$5437,3)) -> 7.58 | K185: 0
B186: =IF($A186=1,COUNTIF($A$166:$A185,1)+1,"") ->  | D186: =IF($I186>0,LEN($L186)*$A$25,"0") -> 0 | E186: 0 | G186: DVI-Buchse auf DVI-D-Kupplung 30cm | H186: 5198 | J186: =IF(ISNA(VLOOKUP($H186,'AF-Artikel'!$A$3:$D$5437,3)),"",VLOOKUP($H186,'AF-Artikel'!$A$3:$D$5437,3)) -> 56.12 | K186: 0
B187: =IF($A187=1,COUNTIF($A$166:$A186,1)+1,"") ->  | E187: 0 | G187: zusätzliche Kabellänge für obiges Kabel in m | H187: 5313 | J187: =IF(ISNA(VLOOKUP($H187,'AF-Artikel'!$A$3:$D$5437,3)),"",VLOOKUP($H187,'AF-Artikel'!$A$3:$D$5437,3)) -> 6.6 | K187: 0
B188: =IF($A188=1,COUNTIF($A$166:$A187,1)+1,"") ->  | D188: =IF($I188>0,LEN($L188)*$A$25,"0") -> 0 | E188: 0 | G188: DVI-Buchse auf DVI-I-Kupplung 20cm | H188: 5222 | J188: =IF(ISNA(VLOOKUP($H188,'AF-Artikel'!$A$3:$D$5437,3)),"",VLOOKUP($H188,'AF-Artikel'!$A$3:$D$5437,3)) -> 66.17 | K188: 0
B189: =IF($A189=1,COUNTIF($A$166:$A188,1)+1,"") ->  | E189: 0
B190: =IF($A190=1,COUNTIF($A$166:$A189,1)+1,"") ->  | D190: =IF($I190>0,LEN($L190)*$A$25,"0") -> 0 | E190: 0 | G190: HDMI-Buchse rückseitig steckbar (Buchse) incl. Winkeladapter | H190: 5203 | J190: =IF(ISNA(VLOOKUP($H190,'AF-Artikel'!$A$3:$D$5437,3)),"",VLOOKUP($H190,'AF-Artikel'!$A$3:$D$5437,3)) -> 28.79 | K190: =I190*J190 -> 0
A191: =IF(I191>0,1,"") ->  | B191: =IF($A191=1,COUNTIF($A$166:$A190,1)+1,"") ->  | D191: =IF($I191>0,LEN($L191)*$A$25,"0") -> 0 | E191: 0 | G191: HDMI-Buchse auf HDMI-Kupplung 30cm | H191: 5221 | J191: =IF(ISNA(VLOOKUP($H191,'AF-Artikel'!$A$3:$D$5437,3)),"",VLOOKUP($H191,'AF-Artikel'!$A$3:$D$5437,3)) -> 47.12 | K191: =I191*J191 -> 0
B192: =IF($A192=1,COUNTIF($A$166:$A191,1)+1,"") ->  | E192: 0 | J192: =IF(ISNA(VLOOKUP($H192,'AF-Artikel'!$A$3:$D$5437,3)),"",VLOOKUP($H192,'AF-Artikel'!$A$3:$D$5437,3)) -> 
B193: =IF($A193=1,COUNTIF($A$166:$A192,1)+1,"") ->  | E193: 0 | G193: HDMI-Verbindungskabel Stecker-Stecker 0,5m | H193: 4585 | J193: =IF(ISNA(VLOOKUP($H193,'AF-Artikel'!$A$3:$D$5437,3)),"",VLOOKUP($H193,'AF-Artikel'!$A$3:$D$5437,3)) -> 15.52 | K193: =I193*J193 -> 0
B194: =IF($A194=1,COUNTIF($A$166:$A193,1)+1,"") ->  | E194: 0 | G194: HDMI-Verbindungskabel Stecker-Stecker 1m | H194: 4451 | J194: =IF(ISNA(VLOOKUP($H194,'AF-Artikel'!$A$3:$D$5437,3)),"",VLOOKUP($H194,'AF-Artikel'!$A$3:$D$5437,3)) -> 18.03 | K194: 0
B195: =IF($A195=1,COUNTIF($A$166:$A194,1)+1,"") ->  | E195: 0 | G195: HDMI-Verbindungskabel Stecker-Stecker 2m | H195: 4452 | J195: =IF(ISNA(VLOOKUP($H195,'AF-Artikel'!$A$3:$D$5437,3)),"",VLOOKUP($H195,'AF-Artikel'!$A$3:$D$5437,3)) -> 22.6 | K195: 0
B196: =IF($A196=1,COUNTIF($A$166:$A195,1)+1,"") ->  | E196: 0 | G196: HDMI-Verbindungskabel Stecker-Stecker 3m | H196: 4453 | J196: =IF(ISNA(VLOOKUP($H196,'AF-Artikel'!$A$3:$D$5437,3)),"",VLOOKUP($H196,'AF-Artikel'!$A$3:$D$5437,3)) -> 29.01 | K196: 0
B197: =IF($A197=1,COUNTIF($A$166:$A196,1)+1,"") ->  | E197: 0 | G197: HDMI-Verbindungskabel Stecker-Stecker 5m | H197: 4454 | J197: =IF(ISNA(VLOOKUP($H197,'AF-Artikel'!$A$3:$D$5437,3)),"",VLOOKUP($H197,'AF-Artikel'!$A$3:$D$5437,3)) -> 40.6 | K197: 0
B198: =IF($A198=1,COUNTIF($A$166:$A197,1)+1,"") ->  | E198: 0 | G198: HDMI-Verbindungskabel Stecker-Stecker 7,5m | H198: 4553 | J198: =IF(ISNA(VLOOKUP($H198,'AF-Artikel'!$A$3:$D$5437,3)),"",VLOOKUP($H198,'AF-Artikel'!$A$3:$D$5437,3)) -> 48.46 | K198: 0
B199: =IF($A199=1,COUNTIF($A$166:$A198,1)+1,"") ->  | E199: 0 | G199: HDMI-Verbindungskabel Stecker-Stecker 10m | H199: 4455 | J199: =IF(ISNA(VLOOKUP($H199,'AF-Artikel'!$A$3:$D$5437,3)),"",VLOOKUP($H199,'AF-Artikel'!$A$3:$D$5437,3)) -> 56.51 | K199: 0
B200: =IF($A200=1,COUNTIF($A$166:$A199,1)+1,"") ->  | E200: 0 | G200: HDMI-Verbindungskabel Stecker-Stecker 15m | H200: 4456 | J200: =IF(ISNA(VLOOKUP($H200,'AF-Artikel'!$A$3:$D$5437,3)),"",VLOOKUP($H200,'AF-Artikel'!$A$3:$D$5437,3)) -> 136.8 | K200: 0
B201: =IF($A201=1,COUNTIF($A$166:$A200,1)+1,"") ->  | E201: 0 | G201: HDMI-Verbindungskabel Stecker-Stecker 20m | H201: 4457 | J201: =IF(ISNA(VLOOKUP($H201,'AF-Artikel'!$A$3:$D$5437,3)),"",VLOOKUP($H201,'AF-Artikel'!$A$3:$D$5437,3)) -> 173.36 | K201: 0
B202: =IF($A202=1,COUNTIF($A$166:$A201,1)+1,"") ->  | E202: 0 | G202: HDMI-Verbindungskabel Stecker-Stecker 25m | H202: 4458 | J202: =IF(ISNA(VLOOKUP($H202,'AF-Artikel'!$A$3:$D$5437,3)),"",VLOOKUP($H202,'AF-Artikel'!$A$3:$D$5437,3)) -> 209.89 | K202: 0
B203: =IF($A203=1,COUNTIF($A$166:$A202,1)+1,"") ->  | E203: 0 | G203: HDMI-Verbindungskabel Stecker-Stecker 30m | H203: 4459 | J203: =IF(ISNA(VLOOKUP($H203,'AF-Artikel'!$A$3:$D$5437,3)),"",VLOOKUP($H203,'AF-Artikel'!$A$3:$D$5437,3)) -> 247.18 | K203: 0
B204: =IF($A204=1,COUNTIF($A$166:$A196,1)+1,"") ->  | E204: 0
B205: =IF($A205=1,COUNTIF($A$166:$A204,1)+1,"") ->  | D205: =IF($I205>0,LEN($L205)*$A$25,"0") -> 0 | E205: 0 | G205: HDMI-Bu-Keystone-abgewinkelt / Kupplung 25cm | H205: 5287 | J205: =IF(ISNA(VLOOKUP($H205,'AF-Artikel'!$A$3:$D$5437,3)),"",VLOOKUP($H205,'AF-Artikel'!$A$3:$D$5437,3)) -> 47.12 | K205: =I205*J205 -> 0
B206: =IF($A206=1,COUNTIF($A$166:$A205,1)+1,"") ->  | E206: 0 | J206: =IF(ISNA(VLOOKUP($H206,'AF-Artikel'!$A$3:$D$5437,3)),"",VLOOKUP($H206,'AF-Artikel'!$A$3:$D$5437,3)) -> 
... 743 more rows

Sheet AF-Artikel
A1: 0 | B1: Nicht verfügbar! | C1: 0 | D1: INDEXC-Text
A2: 1031 | B2: Befestigungssatz Sub-D | C2: 0.6 | D2: Befestigungssatz Sub-D
A3: 1032 | B3: Buchsenleiste HD 15pol | C3: 0.71 | D3: Buchsenleiste HD 15pol
A4: 1033 | B4: Stiftleiste HD 15pol | C4: 0.66 | D4: Stiftleiste HD 15pol
A5: 1034 | B5: Buchsenleiste Sub-D 15pol | C5: 0.71 | D5: Buchsenleiste Sub-D 15pol
A6: 1035 | B6: Buchsenleiste Sub-D 37pol | C6: 1.49 | D6: Buchsenleiste Sub-D 37pol
A7: 1036 | B7: Buchsenleiste Sub-D 50pol | C7: 3.39 | D7: Buchsenleiste Sub-D 50pol
A8: 1037 | B8: Buchsenleiste Sub-D 25pol | C8: 0.84 | D8: Buchsenleiste Sub-D 25pol
A9: 1038 | B9: Buchsenleiste Sub-D 9pol | C9: 0.53 | D9: Buchsenleiste Sub-D 9pol
A10: 1039 | B10: Stiftleiste Sub-D 50pol | C10: 3.28 | D10: Stiftleiste Sub-D 50pol
A11: 1040 | B11: Stiftleiste Sub-D 37pol | C11: 1.66 | D11: Stiftleiste Sub-D 37pol
A12: 1041 | B12: Stiftleiste Sub-D 25pol | C12: 0.84 | D12: Stiftleiste Sub-D 25pol
A13: 1042 | B13: Stiftleiste Sub-D 15pol | C13: 0.66 | D13: Stiftleiste Sub-D 15pol
A14: 1043 | B14: Stiftleiste Sub-D 9pol | C14: 0.48 | D14: Stiftleiste Sub-D 9pol
A15: 1055 | B15: Sub-D Metallhaube 9pol EVE | C15: 5.7 | D15: Sub-D Metallhaube 9pol Typ E
A16: 1062 | B16: Knickschutztülle Helavia Cinch | C16: 0.45 | D16: Knickschutztülle Cinchstecker
A17: 1063 | B17: Sub-D Metallhaube 9pol 10mm Typ A | C17: 3.09 | D17: Sub-D Metallhaube 9pol max. 10mm kurze Verriegelungsschrauben Typ A
A18: 1064 | B18: Einbaubuchse Cinch rot | C18: 3.09 | D18: Cinch-Einbaubuchse vergoldet Rot Neutrik
A19: 1065 | B19: Einbaubuchse Cinch gelb | C19: 3.09 | D19: Cinch-Einbaubuchse vergoldet Gelb Neutrik
A20: 1066 | B20: Einbaubuchse Cinch grün | C20: 3.09 | D20: Cinch-Einbaubuchse vergoldet Grün Neutrik
A21: 1067 | B21: Einbaubuchse Cinch blau | C21: 3.09 | D21: Cinch-Einbaubuchse vergoldet Blau Neutrik
A22: 1068 | B22: Einbaubuchse Cinch schwarz | C22: 3.09 | D22: Cinch-Einbaubuchse vergoldet Schwarz Neutrik
A23: 1069 | B23: Stecker Cinch schwarz Neutrik | C23: 2.72 | D23: Cinch-Stecker,vergoldet ,Schwarz,Neutrik mit 2 Spannzangen
A24: 1070 | B24: Stecker Cinch rot Neutrik | C24: 2.72 | D24: Cinch-Stecker,vergoldet ,Rot,Neutrik mit 2 Spannzangen
A25: 1071 | B25: Stecker Cinch gelb Neutrik | C25: 2.72 | D25: Cinch-Stecker,vergoldet ,Gelb,Neutrik mit 2 Spannzangen
A26: 1072 | B26: Einbaubuchse XLR 3pol | C26: 7.74 | D26: 3pol-XLR-Einbaubuchse Neutrik NC3FD-LX
A27: 1073 | B27: Einbaustecker XLR 3pol | C27: 7.15 | D27: 3pol-XLR-Einbaustecker Neutrik NC3MDL1
A28: 1074 | B28: Stecker XLR 3pol | C28: 5.88 | D28: 3pol-XLR-Stecker Neutrik NC3MXX
A29: 1075 | B29: Kupplung XLR 3pol | C29: 6.99 | D29: 3pol-XLR-Kupplung Neutrik NC3FXX
A30: 1076 | B30: Einbaubuchse RJ45-EtherCon, schneid-klemm, Neutrik | C30: 19.53 | D30: Einbaubuchse Neutrik EtherCon-Buchse mit Schneid-Klemmanschluss
A31: 1077 | B31: Stecker RJ45 Ethercon, Neutrik | C31: 6.65 | D31: Stecker Rj45 EtherCon, Neutrik, NE8MC
A32: 1078 | B32: ZZInaktiv Crimpzange RG 59 A | C32: 43.79 | D32: Crimpzange BNC RG 59 Typ A
A33: 1079 | B33: Gender Changer VGA-Ku./Ku. | C33: 4.29 | D33: Gender Changer VGA-Kupplung/Kupplung
A34: 1080 | B34: Gender Changer VGA-St./St. | C34: 3.94 | D34: Gender Changer VGA-Stecker/Stecker
A35: 1081 | B35: Gender Changer 9pol-St./St. | C35: 3.7 | D35: Gender Changer 9pol-Sub-D-Stecker/Stecker
A36: 1082 | B36: Gender Changer 9pol-Ku./Ku. | C36: 3.7 | D36: Gender Changer 9pol-Sub-D-Kupplung/Kupplung
A37: 1083 | B37: Gender Changer 9pol-St./Bu. | C37: 4.29 | D37: Gender Changer 9pol-Sub-D-Stecker/Buchse
A38: 1084 | B38: Gender Changer 15pol-Ku./Ku. | C38: 4.33 | D38: Gender Changer 15pol-Sub-D-Kupplung/Kupplung
A39: 1085 | B39: Gender Changer 9pol-St./Bu. Nullmodem | C39: 9.74 | D39: Gender Changer 9pol-Sub-D-Stecker/Buchse Nullmodem
A40: 1086 | B40: Einbaubuchse 3,5 Klinke stereo | C40: 1.46 | D40: 3,5mm-Stereoklinkeneinbaubuchse isoliert mit Schaltkontakt
A41: 1087 | B41: Einbaubuchse 3,5 Klinke 4pol | C41: 8.19 | D41: 3,5mm-Klinkeneinbaubuchse 4-polig
A42: 1088 | B42: Stecker DVI 24+5 | C42: 7.87 | D42: Stecker DVI 24+5
A43: 1089 | B43: Stecker Speakon 2pol | C43: 6.27 | D43: 2pol-Speakon-Stecker Neutrik NL2FC
A44: 1090 | B44: Stecker XLR 4pol | C44: 7.97 | D44: 4pol-XLR-Stecker Neutrik NC4MX
A45: 1091 | B45: Stecker XLR 5pol | C45: 12.99 | D45: 5pol-XLR-Stecker Neutrik NC5MX
A46: 1092 | B46: Stecker XLR 6pol | C46: 15.62 | D46: 6pol-XLR-Stecker Neutrik NC6MX
A47: 1093 | B47: Stecker XLR 7pol | C47: 18.64 | D47: 7pol-XLR-Stecker Neutrik NC7MX
A48: 1094 | B48: Kupplung XLR 4pol | C48: 10.48 | D48: 4pol-XLR-Kupplung Neutrik NC4FX
A49: 1095 | B49: Kupplung XLR 5pol | C49: 15.66 | D49: 5pol-XLR-Kupplung Neutrik NC5FX
A50: 1096 | B50: Kupplung XLR 6pol | C50: 18.25 | D50: 6pol-XLR-Kupplung Neutrik NC6FX
A51: 1097 | B51: Kupplung XLR 7pol | C51: 21.22 | D51: 7pol-XLR-Kupplung Neutrik NC7FX
A52: 1098 | B52: Einbaustecker XLR 4pol | C52: 9 | D52: 4pol-XLR-Einbaustecker Neutrik NC4MDL1
A53: 1099 | B53: Einbaustecker XLR 5pol | C53: 13.41 | D53: 5pol-XLR-Einbaustecker Neutrik NC5MDL1
A54: 1100 | B54: Einbaustecker XLR 6pol | C54: 18.32 | D54: 6pol-XLR-Einbaustecker Neutrik NC6MDL1
A55: 1101 | B55: Einbaustecker XLR 7pol | C55: 23.12 | D55: 7pol-XLR-Einbaustecker Neutrik NC7MDL1
A56: 1102 | B56: Einbaubuchse XLR 4pol | C56: 11.21 | D56: 4pol-XLR-Einbaubuchse Neutrik NC4FD-LX
A57: 1103 | B57: Einbaubuchse XLR 5pol | C57: 17.13 | D57: 5pol-XLR-Einbaubuchse Neutrik NC5FDL1
A58: 1104 | B58: Einbaubuchse XLR 6pol | C58: 22.93 | D58: 6pol-XLR-Einbaubuchse Neutrik NC6FDL1
A59: 1105 | B59: Einbaubuchse XLR 7pol | C59: 27.72 | D59: 7pol-XLR-Einbaubuchse Neutrik NC7FDL1
A60: 1108 | B60: Einbaubuchse 2,5 Klinke stereo | C60: 3.02 | D60: 2,5mm-Stereoklinkeneinbaubuchse nicht isoliert
A61: 1109 | B61: Schrumpfschlauchbox 1,6mm sw | C61: 22.14 | D61: Schrumpfschlauchbox 1,6mm schwarz (17m)
A62: 1110 | B62: Schrumpfschlauchbox 2,4mm sw | C62: 22.14 | D62: Schrumpfschlauchbox 2,4mm schwarz (15m)
A63: 1111 | B63: Schrumpfschlauchbox 3,2mm sw | C63: 22.14 | D63: Schrumpfschlauchbox 3,2mm schwarz (15m)
A64: 1112 | B64: Schrumpfschlauchbox 4,8mm sw | C64: 22.14 | D64: Schrumpfschlauchbox 4,8mm schwarz (12m)
A65: 1113 | B65: Schrumpfschlauchbox 6,4mm sw | C65: 22.14 | D65: Schrumpfschlauchbox 6,4mm schwarz (12m)
A66: 1114 | B66: Schrumpfschlauchbox 9,5mm sw | C66: 22.14 | D66: Schrumpfschlauchbox 9,5mm schwarz (8m)
A67: 1115 | B67: Schrumpfschlauchbox 12,7mm sw | C67: 22.14 | D67: Schrumpfschlauchbox 12,7mm schwarz (8m)
A68: 1116 | B68: Schrumpfschlauchbox 16,0mm sw | C68: 22.14 | D68: Schrumpfschlauchbox 16,0mm schwarz (6m)
A69: 1117 | B69: Schrumpfschlauchbox 19,0mm sw | C69: 22.14 | D69: Schrumpfschlauchbox 19,0mm schwarz (5m)
A70: 1118 | B70: Schrumpfschlauchbox 25,4mm sw | C70: 22.14 | D70: Schrumpfschlauchbox 25,4mm schwarz (5m)
A71: 1119 | B71: Schrumpfschlauchbox 3,2mm trans | C71: 22.14 | D71: Schrumpfschlauchbox 3,2mm transparent (15m)
A72: 1120 | B72: Schrumpfschlauchbox 6,4mm trans | C72: 22.14 | D72: Schrumpfschlauchbox 6,4mm transparent (12m)
A73: 1121 | B73: Schrumpfschlauchbox 9,5mm trans | C73: 22.14 | D73: Schrumpfschlauchbox 9,5mm transparent (8m)
A74: 1122 | B74: Schrumpfschlauchbox 12,7mm tran | C74: 22.14 | D74: Schrumpfschlauchbox 12,7mm transparent (8m)
A75: 1123 | B75: Einbaubuchse 2,5 Klinke mono | C75: 3.02 | D75: 2,5mm-Monoklinkeneinbaubuchse nicht isoliert
A76: 1124 | B76: Knickschutz für XLR Ethercon Stecker (NE8MC) gelb | C76: 0.63 | D76: Knickschutz für XLR Ethercon Stecker (NE8MC) gelb
A77: 1125 | B77: Knickschutz für XLR Ethercon Stecker (NE8MC) blau | C77: 0.63 | D77: Knickschutz für XLR Ethercon Stecker (NE8MC) blau
A78: 1126 | B78: Knickschutz für XLR Ethercon Stecker (NE8MC) viol. | C78: 0.63 | D78: Knickschutz für XLR Ethercon Stecker (NE8MC) violett
A79: 1127 | B79: Stecker, RJ45 EtherCon, Neutrik, Crimpversion | C79: 6.65 | D79: Stecker RJ45 EtherCon, Neutrik, NE8MC6, Crimpversion
A80: 1128 | B80: Mutter M12x0,75 | C80: 1.13 | D80: Sechskant Mutter M12x0,75
A81: 1134 | B81: Einbaubuchse 4pin-Mini-DIN rückseitig steckbar | C81: 19.34 | D81: Einbaubuchse 4pin-Mini-DIN rückseitig steckbar
A82: 1135 | B82: Kabeltülle Braun N-BXX-1 | C82: 1.52 | D82: Kabeltülle Braun N-BXX-1
A83: 1136 | B83: Kabeltülle Rot N-BXX-2 | C83: 1.52 | D83: Kabeltülle Rot N-BXX-2
A84: 1137 | B84: Kabeltülle Orange N-BXX-3 | C84: 1.52 | D84: Kabeltülle Orange N-BXX-3
A85: 1138 | B85: Kabeltülle Gelb N-BXX-4 | C85: 1.52 | D85: Kabeltülle Gelb N-BXX-4
A86: 1139 | B86: Kabeltülle Grün N-BXX-5 | C86: 1.52 | D86: Kabeltülle Grün N-BXX-5
A87: 1140 | B87: Kabeltülle Blau N-BXX-6 | C87: 1.52 | D87: Kabeltülle Blau N-BXX-6
A88: 1141 | B88: Kabeltülle Violett N-BXX-7 | C88: 1.52 | D88: Kabeltülle Violett N-BXX-7
A89: 1142 | B89: Kabeltülle Grau N-BXX-8 | C89: 1.52 | D89: Kabeltülle Grau N-BXX-8
A90: 1145 | B90: Stecker BNC-Ku./Cinch-St. | C90: 1.43 | D90: Adapter BNC-Kupplung /Cinch-Stecker
A91: 1146 | B91: Stecker BNC-St./Cinch-Ku. | C91: 1.55 | D91: Adapter BNC-Stecker/Cinch-Kupplung
A92: 1151 | B92: Isolierdurchführung BNC rot | C92: 0.62 | D92: Isolierdurchführungs-Set Rot für BNC-Buchse
A93: 1152 | B93: Isolierdurchführung BNC grün | C93: 0.62 | D93: Isolierdurchführungs-Set Grün für BNC-Buchse
A94: 1153 | B94: Isolierdurchführung BNC blau | C94: 0.62 | D94: Isolierdurchführungs-Set Blau für BNC-Buchse
A95: 1154 | B95: Isolierdurchführung BNC schwarz | C95: 0.62 | D95: Isolierdurchführungs-Set Schwarz für BNC-Buchse
A96: 1155 | B96: Isolierdurchführung BNC weiß | C96: 0.62 | D96: Isolierdurchführungs-Set Weiß für BNC-Buchse
A97: 1156 | B97: Isolierdurchführung BNC gelb | C97: 0.62 | D97: Isolierdurchführungs-Set Gelb für BNC-Buchse
A98: 1172 | B98: Stecker 4pin-Mini-DIN hh | C98: 4.24 | D98: 4pin-Mini-DIN-Stecker Typ H
A99: 1173 | B99: Kupplung 6pin-Mini-DIN hh | C99: 4.75 | D99: 6pin-Mini-DIN-Kupplung Typ H
A100: 1174 | B100: Stecker 6pin-Mini-DIN hh | C100: 4.53 | D100: 6pin-Mini-DIN-Stecker Typ H
A101: 1175 | B101: Kupplung 4pin-Mini-DIN hh | C101: 4.46 | D101: 4pin-Mini-DIN-Kupplung Typ H
A102: 1176 | B102: Stecker 4pin-Mini-DIN ls | C102: 3.64 | D102: 4pin-Mini-DIN-Stecker Typ L
A103: 1177 | B103: Stecker Cinch gelb ls | C103: 2.61 | D103: Cinch-Stecker,vergoldet ,Gelb,Typ L
A104: 1178 | B104: Stecker Cinch rot ls | C104: 2.61 | D104: Cinch-Stecker,vergoldet ,Rot,Typ L
A105: 1179 | B105: Stecker Cinch schwarz ls | C105: 2.61 | D105: Cinch-Stecker,vergoldet ,Schwarz,Typ L
A106: 1180 | B106: Kupplung Cinch gelb ls | C106: 2.52 | D106: Cinch-Kupplung,vergoldet ,Gelb,Typ L
A107: 1181 | B107: Kupplung Cinch rot ls | C107: 2.52 | D107: Cinch-Kupplung,vergoldet ,Rot,Typ L
A108: 1182 | B108: Kupplung Cinch schwarz ls | C108: 2.52 | D108: Cinch-Kupplung,vergoldet ,Schwarz,Typ L
A109: 1184 | B109: Einbaubuchse XLR 3pol schwarz-g | C109: 9.39 | D109: 3pol-XLR-Einbaubuchse Neutrik NC3FDL1B schwarzes Gehäuse mit vergoldeten Kontakten
A110: 1188 | B110: Sub-D Metallhaube 9pol Typ H | C110: 5.18 | D110: Sub-D Metallhaube 9pol max. 10mm mit langen Rändelschrauben
A111: 1189 | B111: Stecker 3pin-Mini-DIN Kunststoffausführung | C111: 3.72 | D111: 3pin-Mini-DIN-Stecker Kunststoffausführung
A112: 1194 | B112: Crimpzange RG 179 S | C112: 47.59 | D112: Crimpzange BNC RG179 Typ S
A113: 1195 | B113: Crimpzange RG 59 S | C113: 43.79 | D113: Crimpzange BNC RG 59 Typ S
A114: 1196 | B114: Einbaubuchse BNC/BNC S | C114: 4.37 | D114: BNC-Durchführungsbuchse 75 Ohm unisoliert Typ S
A115: 1197 | B115: Kupplung BNC 6mm S | C115: 2.41 | D115: BNC-Kabelbuchse für RG59 crimp.
A116: 1198 | B116: Stecker BNC Verbinder S | C116: 2.84 | D116: BNC-Verbinder Buchse/Buchse 75 Ohm Typ S
A117: 1199 | B117: Kupplung BNC 3mm S | C117: 2.86 | D117: BNC-Kabelbuchse 75Ohm 3mm crimp. Typ S
A118: 1200 | B118: Stecker BNC 3mm Typ S | C118: 2.05 | D118: BNC-Crimpstecker für RG 179 75Ohm Typ S
A119: 1201 | B119: Einbaubuchse BNC unisoliert S | C119: 3.21 | D119: BNC Einbaubuchse 75 Ohm unisoliert Typ S
A120: 1202 | B120: Knickschutztülle 6mm weiß S | C120: 0.42 | D120: Knickschutztülle für BNC-Stecker 6mm Typ S weiß
A121: 1203 | B121: Knickschutztülle 6mm blau S | C121: 0.42 | D121: Knickschutztülle für BNC-Stecker 6mm Typ S blau
A122: 1204 | B122: Knickschutztülle 6mm grün S | C122: 0.42 | D122: Knickschutztülle für BNC-Stecker 6mm Typ S grün
A123: 1205 | B123: Knickschutztülle 6mm gelb S | C123: 0.42 | D123: Knickschutztülle für BNC-Stecker 6mm Typ S gelb
A124: 1206 | B124: Knickschutztülle 6mm grau S | C124: 0.42 | D124: Knickschutztülle für BNC-Stecker 6mm Typ S grau
A125: 1207 | B125: Knickschutztülle 6mm orange S | C125: 0.42 | D125: Knickschutztülle für BNC-Stecker 6mm Typ S orange
A126: 1208 | B126: Knickschutztülle 6mm rot S | C126: 0.42 | D126: Knickschutztülle für BNC-Stecker 6mm Typ S rot
A127: 1209 | B127: Knickschutztülle 6mm schwarz S | C127: 0.42 | D127: Knickschutztülle für BNC-Stecker 6mm Typ S schwarz
A128: 1210 | B128: Stecker BNC 6mm S | C128: 1.55 | D128: BNC-Crimpstecker für RG 59 75 Ohm Typ S
A129: 1211 | B129: Knickschutztülle 3mm rot S | C129: 0.42 | D129: Knickschutztülle für BNC-Stecker 3mm Typ S rot
A130: 1212 | B130: Knickschutztülle 3mm weiß S | C130: 0.42 | D130: Knickschutztülle für BNC-Stecker 3mm Typ S weiß
A131: 1213 | B131: Knickschutztülle 3mm blau S | C131: 0.42 | D131: Knickschutztülle für BNC-Stecker 3mm Typ S blau
A132: 1214 | B132: Knickschutztülle 3mm grün S | C132: 0.42 | D132: Knickschutztülle für BNC-Stecker 3mm Typ S grün
A133: 1215 | B133: Knickschutztülle 3mm grau S | C133: 0.42 | D133: Knickschutztülle für BNC-Stecker 3mm Typ S grau
A134: 1216 | B134: Knickschutztülle 3mm orange S | C134: 0.42 | D134: Knickschutztülle für BNC-Stecker 3mm Typ S orange
A135: 1217 | B135: Knickschutztülle 3mm gelb S | C135: 0.42 | D135: Knickschutztülle für BNC-Stecker 3mm Typ S gelb
A136: 1218 | B136: Knickschutztülle 3mm schwarz S | C136: 0.42 | D136: Knickschutztülle für BNC-Stecker 3mm Typ S schwarz
A137: 1219 | B137: Stecker 12pol-miniCON | C137: 30.67 | D137: Stecker 12pol-miniCON, Neutrik
A138: 1220 | B138: Einbaubuchse 12pol Minicon | C138: 36.89 | D138: Einbaubuchse Neutrik Minicon 12polig
A139: 1222 | B139: Einbaubuchse Speakon 4pol | C139: 3.52 | D139: 4pol-Speakon-Einbaubuchse Neutrik NL4MP
A140: 1223 | B140: Stecker Speakon 4pol | C140: 9 | D140: 4pol-Speakon-Stecker Neutrik NL4FX
A141: 1225 | B141: Sub-D Metallhaube 15pol EVE | C141: 10.44 | D141: Sub-D Metallhaube 15pol Typ E
A142: 1226 | B142: Sub-D Metallhaube 25pol EVE | C142: 11.17 | D142: Sub-D Metallhaube 25pol Typ E
A143: 1227 | B143: Sub-D Metallhaube 37pol EVE | C143: 13.34 | D143: Sub-D Metallhaube 37pol Typ E
A144: 1228 | B144: Sub-D Metallhaube 9pol 45° EVG | C144: 10.55 | D144: Sub-D Metallhaube 9pol 45° abgewinkelt Typ E
A145: 1229 | B145: Sub-D Metallhaube 50pol FCT kurze Haube | C145: 14.85 | D145: Sub-D Metallhaube 50pol Typ F, kurze Haube
A146: 1230 | B146: Sub-D Rändelschraube lang FCT | C146: 1.55 | D146: Sub-D Rändelschraube UNC4-40 langl Typ F
A147: 1231 | B147: Isolierdurchführung BNC/BNC schwarz | C147: 0.62 | D147: Isolierdurchführungs-Set Schwarz für BNC-Durchführungsbuchse
A148: 1232 | B148: Einbaubuchse Cinch/Cinch Rot S | C148: 5.52 | D148: Cinch-Durchführungsbuchse unisoliert Rot
A149: 1233 | B149: Einbaubuchse Cinch/Cinch, schwarz S | C149: 5.52 | D149: Cinch-Durchführungsbuchse unisoliert Schwarz
A150: 1234 | B150: Einbaubuchse Cinch/Cinch Gelb S | C150: 5.52 | D150: Cinch-Durchführungsbuchse unisoliert Gelb
A151: 1242 | B151: Isolierdurchführung BNC/BNC rot | C151: 0.62 | D151: Isolierdurchführungs-Set Rot für BNC-Durchführungsbuchse
A152: 1243 | B152: Isolierdurchführung BNC/BNC grün | C152: 0.62 | D152: Isolierdurchführungs-Set Grün für BNC-Durchführungsbuchse
A153: 1244 | B153: Isolierdurchführung BNC/BNC blau | C153: 0.62 | D153: Isolierdurchführungs-Set Blau für BNC-Durchführungsbuchse
A154: 1245 | B154: Isolierdurchführung BNC/BNC weiß | C154: 0.62 | D154: Isolierdurchführungs-Set Weiß für BNC-Durchführungsbuchse
A155: 1246 | B155: Isolierdurchführung BNC/BNC gelb | C155: 0.62 | D155: Isolierdurchführungs-Set Gelb für BNC-Durchführungsbuchse
A156: 1249 | B156: Sub-D Metallhaube 50pol FCT lange Haube | C156: 14.85 | D156: Sub-D Metallhaube 50pol Typ F, lange Haube
A157: 1251 | B157: Koaxkontakt Stift FCT Mischk. | C157: 10.3 | D157: Koaxkontakt-Stift 75Ohm für FCT Mischkontakt-Serie
A158: 1259 | B158: Stecker BNC 4,5mm S | C158: 2.73 | D158: BNC-Crimpstecker für 0,6/2,8 75Ohm Typ S
A159: 1260 | B159: Knickschutztülle 4,5mm, rot S | C159: 0.42 | D159: Knickschutztülle für BNC-Stecker 4,5mm Typ S rot
A160: 1261 | B160: Knickschutztülle 4,5mm, grün S | C160: 0.42 | D160: Knickschutztülle für BNC-Stecker 4,5mm Typ S grün
A161: 1262 | B161: Knickschutztülle 4,5mm, blau S | C161: 0.42 | D161: Knickschutztülle für BNC-Stecker 4,5mm Typ S blau
A162: 1263 | B162: Knickschutztülle 4,5mm, schwarz S | C162: 0.42 | D162: Knickschutztülle für BNC-Stecker 4,5mm Typ S schwarz
A163: 1264 | B163: Knickschutztülle 4,5mm, weiß S | C163: 0.42 | D163: Knickschutztülle für BNC-Stecker 4,5mm Typ S weiß
A164: 1265 | B164: Crimpzange Typ S 3; 4,5 und 6mm | C164: 47.59 | D164: Crimpzange BNC Typ S für 3mm, 4,5mm und 6mm BNC-Stecker
A165: 1266 | B165: ZZInaktiv Stecker Klinke 3,5mm stereo met | C165: 0.82 | D165: Stecker Klinke 3,5mm stereo metall vergoldet
A166: 1267 | B166: Kupplung Klinke 3,5mm stereo Metall vergoldet | C166: 1.62 | D166: Kupplung Klinke 3,5mm stereo Metall vergoldet
A167: 1268 | B167: Stecker 26pol Hirose | C167: 49.45 | D167: Stecker Hirose 26pol
A168: 1269 | B168: Kupplung 26pol Hirose | C168: 49.45 | D168: Kupplung Hirose 26pol
A169: 1270 | B169: Stecker Scart | C169: 0.89 | D169: Stecker Scart
A170: 1271 | B170: Einbaubuchse PowerCon blau | C170: 5.84 | D170: PowerCon-Einbaubuchse blau Neutrik NAC3MPA "Power In"
A171: 1273 | B171: Schrumpfschlauchbox 1,6mm trans | C171: 22.14 | D171: Schrumpfschlauchbox 1,6mm transparent (17m)
A172: 1274 | B172: Schrumpfschlauchbox 2,4mm trans | C172: 22.14 | D172: Schrumpfschlauchbox 2,4mm transparent (15m)
A173: 1275 | B173: Schrumpfschlauchbox 4,8mm trans | C173: 22.14 | D173: Schrumpfschlauchbox 4,8mm transparent (12m)
A174: 1276 | B174: Schrumpfschlauchbox 16,0mm tran | C174: 22.14 | D174: Schrumpfschlauchbox 16,0mm transparent (6m)
A175: 1277 | B175: Schrumpfschlauchbox 19,0mm tran | C175: 22.14 | D175: Schrumpfschlauchbox 19,0mm transparent (5m)
A176: 1278 | B176: Schrumpfschlauchbox 25,4mm tran | C176: 22.14 | D176: Schrumpfschlauchbox 25,4mm transparent (5m)
A177: 1285 | B177: Stecker Klinke 3,5mm stereo abg | C177: 1.66 | D177: Stecker Klinke 3,5mm stereo abgewinkelt
A178: 1322 | B178: Abisolierwerkzeug RG59 | C178: 15.45 | D178: Abisolierwerkzeug für Koaxialkabel RG59
A179: 1323 | B179: Abisolierwerkzeug 0,6/2,8 | C179: 31.47 | D179: Abisolierwerkzeug für Koaxialkabel 0,6/2,8
A180: 1324 | B180: Scart-Adapter 3xCinch+Hosiden S | C180: 7.77 | D180: Scartadapter mit 3 Cinchkupplungen, einer 4pin-Mini-DIN-Kupplung und IN/OUT-Schalter
A181: 1325 | B181: Einbaubuchse USB Neutrik | C181: 8.86 | D181: USB-Einbaubuchse Neutrik NAUSB
A182: 1347 | B182: Stecker BNC 6mm abgewinkelt S | C182: 4.83 | D182: BNC-Winkel-Crimpstecker für RG 59 75 Ohm Typ S
A183: 1348 | B183: Stecker BNC 3mm abgewinkelt S | C183: 5.12 | D183: BNC-Winkel-Crimpstecker für RG179 75 Ohm Typ S
A184: 1349 | B184: Mittel-Pin BNC-Stecker 3mm | C184: 0.63 | D184: Mittel-Pin für BNC-Crimpstecker 3mm für RG 179 75Ohm Typ S
A185: 1350 | B185: Mittel Pin BNC-Kupplung 3mm | C185: 0.68 | D185: Mittel Pin für BNC-Kabelbuchse für RG 179 75Ohm Typ S
A186: 1356 | B186: Kupplung Mini-XLR 3pol | C186: 16.97 | D186: 3pol-Mini-XLR-Kupplung Switchcraft
A187: 1358 | B187: Stecker Klinke 6,3mm mono met | C187: 1.78 | D187: Stecker Klinke 6,3mm mono metall vergoldet
A188: 1359 | B188: Stecker Klinke 6,3mm stereo met | C188: 1.82 | D188: Stecker Klinke 6,3mm stereo metall vergoldet
A189: 1360 | B189: Kupplung Klinke 6,3mm mono Metall vergoldet | C189: 3.29 | D189: Kupplung Klinke 6,3mm mono Metall vergoldet
A190: 1361 | B190: Kupplung Klinke 6,3mm stereo Metall vergoldet | C190: 2.36 | D190: Kupplung Klinke 6,3mm stereo Metall vergoldet
A191: 1362 | B191: Stecker Klinke 3,5mm mono met | C191: 1.05 | D191: Stecker Klinke 3,5mm mono metall vergoldet
A192: 1363 | B192: Kupplung Klinke 3,5mm mono Metall vergoldet | C192: 1.43 | D192: Kupplung Klinke 3,5mm mono Metall vergoldet
A193: 1364 | B193: Stecker Klinke 2,5mm mono met | C193: 1.62 | D193: Stecker Klinke 2,5mm mono metall
A194: 1365 | B194: Kupplung Klinke 2,5mm mono Metall vergoldet | C194: 0.89 | D194: Kupplung Klinke 2,5mm mono metall
A195: 1366 | B195: Stecker Klinke 2,5mm stereo met | C195: 1.05 | D195: Stecker Klinke 2,5mm stereo metall
A196: 1367 | B196: Kupplung Klinke 2,5mm stereo Metall vergoldet | C196: 1.12 | D196: Kupplung Klinke 2,5mm stereo metall
A197: 1368 | B197: Stecker Klinke 6,3mm mono abg | C197: 0.96 | D197: Stecker Klinke 6,3mm mono abgewinkelt
A198: 1379 | B198: Stecker Mini-XLR 3pol | C198: 16.97 | D198: 3pol-Mini-XLR-Stecker Switchcraft
A199: 1393 | B199: Blindabdeckung XLR D-Bohrung | C199: 1.47 | D199: Blindabdeckung fürXLR D-Bohrung
A200: 1412 | B200: Stecker Klinke 3,5mm NYS231L | C200: 1.62 | D200: Stecker Klinke 3,5mm stereo metall 6mm Öffnung Neutrik NYS 231L
... 1359 more rows
